Workbook

Sheet ------ (hidden)

Sheet VXXXXX (hidden)

Sheet 징수실적
G1: 2014년 10월분 지방세 징수실적 보고서 (2014 회계)
P4: 제출 년월일 : | Q4: 2014년 11월 10일
R5: (단위 : 천원)
E6: 목 표액 (예산액) | G6: 부 과 액 | I6: 징 수 액 | K6: 불납결손액 | M6: 미 수 납 액 | N6: 징 수 비 율 | Q6: 과오납 환부액
E7: 당 초 | F7: 최 종 | G7: 본월분 | H7: 누 계 | I7: 본월분 | J7: 누 계 | K7: 본월분 | L7: 누 계 | N7: 대목표 (당초) | O7: 대목표 (최종) | P7: 대부과 | Q7: 본월분 | R7: 누 계
A8: 총 괄 | B8: 합 계 | E8: =SUM(E9:E10) -> 257,840,400 | F8: 257,960,400 | G8: =SUM(G9:G10) -> 13,252,117 | H8: 241,548,285 | I8: 14,150,422 | J8: =SUM(J9:J10) -> 226,362,601 | K8: 0 | L8: 1,503,894 | M8: 13,681,790 | N8: =+J8/E8*100 -> 87.8 | O8: =+J8/F8*100 -> 87.8 | P8: =+J8/H8*100 -> 93.7 | Q8: =SUM(Q9:Q10) -> 179,578 | R8: =SUM(R9:R10) -> 3,660,128
B9: 도 세 | E9: =E12+E47+E48 -> 97,460,400 | F9: 97,460,400 | G9: 6,150,414 | H9: 80,522,046 | I9: 6,318,085 | J9: 76,370,831 | K9: 0 | L9: 324,140 | M9: 3,827,075 | N9: 78.4 | O9: 78.4 | P9: 94.8 | Q9: =Q12+Q47+Q48 -> 92,798 | R9: =R12+R47+R48 -> 508,690
B10: 시 군 세 | E10: =E32+E49 -> 160,380,000 | F10: =F32+F49 -> 160,500,000 | G10: 7,101,703 | H10: 161,026,239 | I10: 7,832,337 | J10: 149,991,770 | K10: 0 | L10: 1,179,754 | M10: 9,854,715 | N10: 93.5 | O10: 93.5 | P10: 93.1 | Q10: =Q32+Q49 -> 86,780 | R10: =R32+R49 -> 3,151,438
A11: 현 년 도 | B11: 계 | E11: =SUM(E12,E32) -> 256,412,900 | F11: 256,412,900 | G11: 13,318,015 | H11: 231,174,219 | I11: 14,160,516 | J11: 225,910,046 | K11: 0 | L11: 877 | M11: 5,263,296 | N11: 88.1 | O11: 88.1 | P11: 97.7 | Q11: =SUM(Q12,Q32) -> 66,667 | R11: =SUM(R12,R32) -> 1,070,776
B12: 도 세 | C12: 소 계 | E12: =SUM(E13,E14,E17,E20:E24,E25) -> 96,912,900 | F12: 96,912,900 | G12: 6,214,582 | H12: 77,466,147 | I12: 6,362,730 | J12: 75,756,286 | K12: 0 | L12: 118 | M12: 1,709,743 | N12: 78.2 | O12: 78.2 | P12: 97.8 | Q12: =SUM(Q13,Q14,Q17,Q20:Q24,Q25) -> 20,440 | R12: =SUM(R13,R14,R17,R20:R24,R25) -> 392,047
C13: 취 득 세 | E13: 62,365,100 | F13: 62,365,100 | G13: 4,120,582 | H13: 45,345,537 | I13: 4,112,340 | J13: 44,376,911 | M13: =H13-J13-L13 -> 968,626 | N13: 71.2 | O13: 71.2 | P13: 97.9 | Q13: 8,506 | R13: 216,865
C14: 등 록 면허세 | D14: 소 계 | E14: =SUM(E15:E16) -> 5,837,800 | F14: 5,837,800 | G14: 433,540 | H14: 5,303,309 | I14: 435,250 | J14: 5,267,358 | K14: 0 | L14: 77 | M14: 35,874 | N14: 90.2 | O14: 90.2 | P14: 99.3 | Q14: =SUM(Q15:Q16) -> 3,258 | R14: =SUM(R15:R16) -> 90,730
D15: 등록분 | E15: 5,344,800 | F15: 5,344,800 | G15: 406,940 | H15: 4,431,932 | I15: 406,940 | J15: 4,431,932 | M15: =H15-J15-L15 -> 0 | N15: 82.9 | O15: 82.9 | P15: 100.0 | Q15: 3,200 | R15: 13,964
D16: 면허분 | E16: 493,000 | F16: 493,000 | G16: 26,600 | H16: 871,377 | I16: 28,310 | J16: 835,426 | K16: 0 | L16: 77 | M16: =H16-J16-L16 -> 35,874 | N16: 169.5 | O16: 169.5 | P16: 95.9 | Q16: 58 | R16: 76,766
C17: 지 역 자 원 시설세 | D17: 소 계 | E17: =SUM(E18:E19) -> 6,260,000 | F17: 6,260,000 | G17: 254,215 | H17: 8,422,267 | I17: 288,789 | J17: 8,240,160 | K17: 0 | L17: 0 | M17: 182,107 | N17: 131.6 | O17: 131.6 | P17: 97.8 | Q17: =SUM(Q18:Q19) -> 0 | R17: =SUM(R18:R19) -> 24,997
D18: 특정자원 | E18: 55,000 | F18: 55,000 | G18: 251,978 | H18: 900,470 | I18: 251,202 | J18: 898,832 | M18: =H18-J18-L18 -> 1,638 | N18: 1,634.2 | O18: 1,634.2 | P18: 99.8
D19: 특정부동산 | E19: 6,205,000 | F19: 6,205,000 | G19: 2,237 | H19: 7,521,797 | I19: 37,587 | J19: 7,341,328 | M19: 180,469 | N19: 118.3 | O19: 118.3 | P19: 97.6 | Q19: 0 | R19: 24,997
C20: 지방소비세 | M20: 0
C21: 등 록 세 | G21: 13,612 | H21: 211,478 | I21: 13,481 | J21: 211,333 | M21: 145 | P21: 99.9 | Q21: 0 | R21: 388
C22: 면 허 세 | M22: 0
C23: 공동시설세 | G23: 3 | H23: 2,017 | I23: 3 | J23: 2,017 | M23: 0 | P23: 100.0
C24: 지역개발세 | M24: 0
C25: 지 방 교 육 세 | D25: 소 계 | E25: =SUM(E26:E31) -> 22,450,000 | F25: =SUM(F26:F31) -> 22,450,000 | G25: 1,392,630 | H25: =SUM(H26:H31) -> 18,181,539 | I25: 1,512,867 | J25: 17,658,507 | K25: 0 | L25: 41 | M25: 522,991 | N25: 78.7 | O25: 78.7 | P25: 97.1 | Q25: =SUM(Q26:Q31) -> 8,676 | R25: =SUM(R26:R31) -> 59,067
D26: 취득세분 | E26: 3,619,000 | F26: 3,619,000 | G26: 222,545 | H26: 2,514,742 | I26: 220,991 | J26: 2,444,243 | M26: =H26-J26-L26 -> 70,499 | N26: 67.5 | O26: 67.5 | P26: 97.2 | Q26: 436 | R26: 15,993
D27: 등록면허세분 | E27: 1,586,000 | F27: 1,586,000 | G27: 70,306 | H27: 816,107 | I27: 70,306 | J27: 816,104 | M27: 3 | N27: 51.5 | O27: 51.5 | P27: 100.0 | Q27: 637 | R27: 2,857
D28: 주민세분 | E28: 95,000 | F28: 95,000 | G28: 249 | H28: 126,452 | I28: 2,731 | J28: 102,375 | M28: 24,077 | N28: 107.8 | O28: 107.8 | P28: 81.0 | Q28: 17 | R28: 52
D29: 재산세분 | E29: 3,000,000 | F29: 3,000,000 | G29: 3,129 | H29: 4,210,218 | I29: 109,184 | J29: 4,033,756 | L29: 4 | M29: 176,458 | N29: 134.5 | O29: 134.5 | P29: 95.8 | Q29: 5,027 | R29: 6,509
D30: 자동차세분 | E30: 5,750,000 | F30: 5,750,000 | G30: 9,998 | H30: 3,614,544 | I30: 23,252 | J30: 3,362,553 | L30: 37 | M30: 251,954 | N30: 58.5 | O30: 58.5 | P30: 93.0 | Q30: 2,559 | R30: 33,656
D31: 담배소비세분 | E31: 8,400,000 | F31: 8,400,000 | G31: 1,086,403 | H31: 6,899,476 | I31: 1,086,403 | J31: 6,899,476 | M31: 0 | N31: 82.1 | O31: 82.1 | P31: 100.0
B32: 시 군 세 | C32: 소 계 | E32: =SUM(E33,E34,E35,E38:E45) -> 159,500,000 | F32: =SUM(F33,F34,F35,F38:F45) -> 159,500,000 | G32: 7,103,433 | H32: =SUM(H33,H34,H35,H38:H45) -> 153,708,072 | I32: 7,797,786 | J32: 150,153,760 | K32: 0 | L32: 759 | M32: 3,553,553 | N32: 94.1 | O32: 94.1 | P32: 97.7 | Q32: =SUM(Q33,Q34,Q35,Q38:Q45) -> 46,227 | R32: =SUM(R33,R34,R35,R38:R45) -> 678,729
C33: 주 민 세 | E33: 2,950,000 | F33: 9,550,000 | G33: 646,797 | H33: 8,364,733 | I33: 672,846 | J33: 8,092,952 | M33: =H33-J33-L33 -> 271,781 | N33: 274.3 | O33: 84.7 | P33: 96.8 | Q33: 167 | R33: 1,969
C34: 재 산 세 | E34: 28,000,000 | F34: 28,000,000 | G34: 25,597 | H34: 33,752,898 | I34: 753,181 | J34: 32,463,271 | K34: 0 | L34: 35 | M34: =H34-J34-L34 -> 1,289,592 | N34: 115.9 | O34: 115.9 | P34: 96.2 | Q34: 25,377 | R34: 35,426
C35: 자동 차세 | D35: 소 계 | E35: =SUM(E36:E37) -> 43,300,000 | F35: =SUM(F36:F37) -> 43,300,000 | G35: 1,453,914 | H35: 33,133,812 | I35: 1,504,227 | J35: 32,208,027 | K35: 0 | L35: 123 | M35: 925,662 | N35: 74.4 | O35: 74.4 | P35: 97.2 | Q35: =SUM(Q36:Q37) -> 11,678 | R35: =SUM(R36:R37) -> 133,015
D36: 자동차분 | E36: 18,000,000 | F36: 18,000,000 | G36: 30,600 | H36: 13,112,844 | I36: 80,913 | J36: 12,187,059 | L36: 123 | M36: =H36-J36-L36 -> 925,662 | N36: 67.7 | O36: 67.7 | P36: 92.9 | Q36: 11,678 | R36: 133,015
D37: 주 행 분 | E37: 25,300,000 | F37: 25,300,000 | G37: 1,423,314 | H37: 20,020,968 | I37: 1,423,314 | J37: 20,020,968 | M37: 0 | N37: 79.1 | O37: 79.1 | P37: 100.0
C38: 담배소비세 | E38: 16,300,000 | F38: 16,300,000 | G38: 2,172,806 | H38: 13,798,978 | I38: 2,172,806 | J38: 13,798,978 | M38: 0 | N38: 84.7 | O38: 84.7 | P38: 100.0
C39: 지방소득세 | E39: 68,950,000 | F39: 62,350,000 | G39: 2,804,309 | H39: 64,656,440 | I39: 2,694,716 | J39: 63,589,329 | K39: 0 | L39: 601 | M39: 1,066,510 | N39: 92.2 | O39: 102.0 | P39: 98.3 | Q39: 9,005 | R39: 508,319
C40: 주 행 세 | M40: 0
C41: 농업소득세 | M41: 0
C42: 도 축 세 | M42: 0
C43: 종합토지세 | M43: 0
C44: 도시계획세 | G44: 10 | H44: 1,211 | I44: 10 | J44: 1,203 | M44: 8 | P44: 99.3
C45: 사 업 소세 | M45: 0
A46: 과 년 도 | B46: 계 | E46: =SUM(E47:E49) -> 1,427,500 | F46: =SUM(F47:F49) -> 1,547,500 | G46: -65,898 | H46: 10,374,066 | I46: -10,094 | J46: 452,555 | K46: 0 | L46: 1,503,017 | M46: 8,418,494 | N46: 31.7 | O46: 29.2 | P46: 4.4 | Q46: =SUM(Q47:Q49) -> 112,911 | R46: =SUM(R47:R49) -> 2,589,352
B47: 도 세 | E47: 247,500 | F47: 247,500 | G47: -57,752 | H47: 1,730,468 | I47: -52,596 | J47: 178,255 | K47: 0 | L47: 267,481 | M47: =H47-J47-L47 -> 1,284,732 | N47: 72.0 | O47: 72.0 | P47: 10.3 | Q47: 65,315 | R47: 104,525
B48: 지방교육세 | E48: 300,000 | F48: 300,000 | G48: -6,416 | H48: 1,325,431 | I48: 7,951 | J48: 436,290 | K48: 0 | L48: 56,541 | M48: =H48-J48-L48 -> 832,600 | N48: 145.4 | O48: 145.4 | P48: 32.9 | Q48: 7,043 | R48: 12,118
B49: 시 군 세 | E49: 880,000 | F49: 1,000,000 | G49: -1,730 | H49: 7,318,167 | I49: 34,551 | J49: -161,990 | K49: 0 | L49: 1,178,995 | M49: =H49-J49-L49 -> 6,301,162 | N49: -18.4 | O49: -16.2 | P49: -2.2 | Q49: 40,553 | R49: 2,472,709

Sheet 1-3-1
A1: 1-3-1. 체납액 사유별 현황
A2: (총 계) | O2: (단위 : 건, 천원)
A3: 구 분 | B3: 계 | D3: 징수유예 | F3: 부도 및 경영난 | H3: 소송계류 | J3: 고질체납 | L3: 무 재 산 | N3: 행방불명
B4: 건수 | C4: 금액 | D4: 건수 | E4: 금액 | F4: 건수 | G4: 금액 | H4: 건수 | I4: 금액 | J4: 건수 | K4: 금액 | L4: 건수 | M4: 금액 | N4: 건수 | O4: 금액
A5: 합 계 | B5: =SUM(D5,F5,H5,J5,L5,N5) -> 262,139 | C5: =SUM(E5,G5,I5,K5,M5,O5,) -> 13,681,790 | D5: =D6+D16 -> 42 | E5: 515,853 | F5: 31,816 | G5: 5,608,866 | H5: 11 | I5: 84,727 | J5: 187,821 | K5: 5,724,528 | L5: 19,995 | M5: 1,008,003 | N5: 22,454 | O5: 739,813
A6: 도세 계 | B6: =SUM(D6,F6,H6,J6,L6,N6) -> 128,177 | C6: =SUM(E6,G6,I6,K6,M6,O6,) -> 3,827,075 | D6: =SUM(D7:D15) -> 14 | E6: =SUM(E7:E15) -> 118,801 | F6: 16,226 | G6: =SUM(G7:G15) -> 2,178,581 | H6: 0 | I6: 0 | J6: 90,126 | K6: 1,241,245 | L6: 10,257 | M6: 123,291 | N6: 11,554 | O6: 165,157
A7: 취 득 세 | B7: 784 | C7: =SUM(E7,G7,I7,K7,M7,O7,) -> 1,968,284 | D7: =SUM('[2]1-3-2'!D7,'[2]1-3-3'!D7) -> 1 | E7: =SUM('[2]1-3-2'!E7,'[2]1-3-3'!E7) -> 17,326 | F7: =SUM('[2]1-3-2'!F7,'[2]1-3-3'!F7) -> 257 | G7: =SUM('[2]1-3-2'!G7,'[2]1-3-3'!G7) -> 1,376,203 | H7: =SUM('[2]1-3-2'!H7,'[2]1-3-3'!H7) -> 0 | I7: =SUM('[2]1-3-2'!I7,'[2]1-3-3'!I7) -> 0 | J7: =SUM('[2]1-3-2'!J7,'[2]1-3-3'!J7) -> 399 | K7: =SUM('[2]1-3-2'!K7,'[2]1-3-3'!K7) -> 472,619 | L7: =SUM('[2]1-3-2'!L7,'[2]1-3-3'!L7) -> 78 | M7: =SUM('[2]1-3-2'!M7,'[2]1-3-3'!M7) -> 65,906 | N7: =SUM('[2]1-3-2'!N7,'[2]1-3-3'!N7) -> 49 | O7: =SUM('[2]1-3-2'!O7,'[2]1-3-3'!O7) -> 36,230
A8: 등록면허세 | B8: 3,359 | C8: 52,494 | D8: =SUM('[2]1-3-2'!D8,'[2]1-3-3'!D8) -> 0 | E8: =SUM('[2]1-3-2'!E8,'[2]1-3-3'!E8) -> 0 | F8: =SUM('[2]1-3-2'!F8,'[2]1-3-3'!F8) -> 583 | G8: =SUM('[2]1-3-2'!G8,'[2]1-3-3'!G8) -> 14,733 | H8: =SUM('[2]1-3-2'!H8,'[2]1-3-3'!H8) -> 0 | I8: =SUM('[2]1-3-2'!I8,'[2]1-3-3'!I8) -> 0 | J8: =SUM('[2]1-3-2'!J8,'[2]1-3-3'!J8) -> 2,685 | K8: =SUM('[2]1-3-2'!K8,'[2]1-3-3'!K8) -> 36,535 | L8: =SUM('[2]1-3-2'!L8,'[2]1-3-3'!L8) -> 36 | M8: =SUM('[2]1-3-2'!M8,'[2]1-3-3'!M8) -> 477 | N8: =SUM('[2]1-3-2'!N8,'[2]1-3-3'!N8) -> 55 | O8: =SUM('[2]1-3-2'!O8,'[2]1-3-3'!O8) -> 749
A9: 지역자원시설세 | B9: 5,552 | C9: 325,105 | D9: =SUM('[2]1-3-2'!D9,'[2]1-3-3'!D9) -> 0 | E9: =SUM('[2]1-3-2'!E9,'[2]1-3-3'!E9) -> 0 | F9: =SUM('[2]1-3-2'!F9,'[2]1-3-3'!F9) -> 1,821 | G9: =SUM('[2]1-3-2'!G9,'[2]1-3-3'!G9) -> 230,920 | H9: =SUM('[2]1-3-2'!H9,'[2]1-3-3'!H9) -> 0 | I9: =SUM('[2]1-3-2'!I9,'[2]1-3-3'!I9) -> 0 | J9: =SUM('[2]1-3-2'!J9,'[2]1-3-3'!J9) -> 3,046 | K9: =SUM('[2]1-3-2'!K9,'[2]1-3-3'!K9) -> 79,780 | L9: =SUM('[2]1-3-2'!L9,'[2]1-3-3'!L9) -> 63 | M9: =SUM('[2]1-3-2'!M9,'[2]1-3-3'!M9) -> 1,684 | N9: =SUM('[2]1-3-2'!N9,'[2]1-3-3'!N9) -> 622 | O9: =SUM('[2]1-3-2'!O9,'[2]1-3-3'!O9) -> 12,721
A10: 지방소비세 | B10: 0 | C10: 0 | D10: =SUM('[2]1-3-2'!D10,'[2]1-3-3'!D10) -> 0 | E10: =SUM('[2]1-3-2'!E10,'[2]1-3-3'!E10) -> 0 | F10: =SUM('[2]1-3-2'!F10,'[2]1-3-3'!F10) -> 0 | G10: =SUM('[2]1-3-2'!G10,'[2]1-3-3'!G10) -> 0 | H10: =SUM('[2]1-3-2'!H10,'[2]1-3-3'!H10) -> 0 | I10: =SUM('[2]1-3-2'!I10,'[2]1-3-3'!I10) -> 0 | J10: =SUM('[2]1-3-2'!J10,'[2]1-3-3'!J10) -> 0 | K10: =SUM('[2]1-3-2'!K10,'[2]1-3-3'!K10) -> 0 | L10: =SUM('[2]1-3-2'!L10,'[2]1-3-3'!L10) -> 0 | M10: =SUM('[2]1-3-2'!M10,'[2]1-3-3'!M10) -> 0 | N10: =SUM('[2]1-3-2'!N10,'[2]1-3-3'!N10) -> 0 | O10: =SUM('[2]1-3-2'!O10,'[2]1-3-3'!O10) -> 0
A11: 등록세 | B11: 114 | C11: 65,621 | D11: =SUM('[2]1-3-2'!D11,'[2]1-3-3'!D11) -> 0 | E11: =SUM('[2]1-3-2'!E11,'[2]1-3-3'!E11) -> 0 | F11: =SUM('[2]1-3-2'!F11,'[2]1-3-3'!F11) -> 19 | G11: =SUM('[2]1-3-2'!G11,'[2]1-3-3'!G11) -> 49,031 | H11: =SUM('[2]1-3-2'!H11,'[2]1-3-3'!H11) -> 0 | I11: =SUM('[2]1-3-2'!I11,'[2]1-3-3'!I11) -> 0 | J11: =SUM('[2]1-3-2'!J11,'[2]1-3-3'!J11) -> 79 | K11: =SUM('[2]1-3-2'!K11,'[2]1-3-3'!K11) -> 10,108 | L11: =SUM('[2]1-3-2'!L11,'[2]1-3-3'!L11) -> 11 | M11: =SUM('[2]1-3-2'!M11,'[2]1-3-3'!M11) -> 5,455 | N11: =SUM('[2]1-3-2'!N11,'[2]1-3-3'!N11) -> 5 | O11: =SUM('[2]1-3-2'!O11,'[2]1-3-3'!O11) -> 1,027
A12: 면허세 | B12: 1,170 | C12: 13,762 | D12: =SUM('[2]1-3-2'!D12,'[2]1-3-3'!D12) -> 0 | E12: =SUM('[2]1-3-2'!E12,'[2]1-3-3'!E12) -> 0 | F12: =SUM('[2]1-3-2'!F12,'[2]1-3-3'!F12) -> 202 | G12: =SUM('[2]1-3-2'!G12,'[2]1-3-3'!G12) -> 3,120 | H12: =SUM('[2]1-3-2'!H12,'[2]1-3-3'!H12) -> 0 | I12: =SUM('[2]1-3-2'!I12,'[2]1-3-3'!I12) -> 0 | J12: =SUM('[2]1-3-2'!J12,'[2]1-3-3'!J12) -> 782 | K12: =SUM('[2]1-3-2'!K12,'[2]1-3-3'!K12) -> 8,709 | L12: =SUM('[2]1-3-2'!L12,'[2]1-3-3'!L12) -> 101 | M12: =SUM('[2]1-3-2'!M12,'[2]1-3-3'!M12) -> 1,019 | N12: =SUM('[2]1-3-2'!N12,'[2]1-3-3'!N12) -> 85 | O12: =SUM('[2]1-3-2'!O12,'[2]1-3-3'!O12) -> 914
A13: 공동시설세 | B13: 964 | C13: 45,877 | D13: =SUM('[2]1-3-2'!D13,'[2]1-3-3'!D13) -> 5 | E13: =SUM('[2]1-3-2'!E13,'[2]1-3-3'!E13) -> 39,435 | F13: =SUM('[2]1-3-2'!F13,'[2]1-3-3'!F13) -> 220 | G13: =SUM('[2]1-3-2'!G13,'[2]1-3-3'!G13) -> 3,046 | H13: =SUM('[2]1-3-2'!H13,'[2]1-3-3'!H13) -> 0 | I13: =SUM('[2]1-3-2'!I13,'[2]1-3-3'!I13) -> 0 | J13: =SUM('[2]1-3-2'!J13,'[2]1-3-3'!J13) -> 527 | K13: =SUM('[2]1-3-2'!K13,'[2]1-3-3'!K13) -> 2,645 | L13: =SUM('[2]1-3-2'!L13,'[2]1-3-3'!L13) -> 110 | M13: =SUM('[2]1-3-2'!M13,'[2]1-3-3'!M13) -> 457 | N13: =SUM('[2]1-3-2'!N13,'[2]1-3-3'!N13) -> 102 | O13: =SUM('[2]1-3-2'!O13,'[2]1-3-3'!O13) -> 294
A14: 지역개발세 | B14: 38 | C14: 341 | D14: =SUM('[2]1-3-2'!D14,'[2]1-3-3'!D14) -> 0 | E14: =SUM('[2]1-3-2'!E14,'[2]1-3-3'!E14) -> 0 | F14: =SUM('[2]1-3-2'!F14,'[2]1-3-3'!F14) -> 22 | G14: =SUM('[2]1-3-2'!G14,'[2]1-3-3'!G14) -> 196 | H14: =SUM('[2]1-3-2'!H14,'[2]1-3-3'!H14) -> 0 | I14: =SUM('[2]1-3-2'!I14,'[2]1-3-3'!I14) -> 0 | J14: =SUM('[2]1-3-2'!J14,'[2]1-3-3'!J14) -> 9 | K14: =SUM('[2]1-3-2'!K14,'[2]1-3-3'!K14) -> 108 | L14: =SUM('[2]1-3-2'!L14,'[2]1-3-3'!L14) -> 0 | M14: =SUM('[2]1-3-2'!M14,'[2]1-3-3'!M14) -> 0 | N14: =SUM('[2]1-3-2'!N14,'[2]1-3-3'!N14) -> 7 | O14: =SUM('[2]1-3-2'!O14,'[2]1-3-3'!O14) -> 37
A15: 지방교육세 | B15: 116,196 | C15: 1,355,591 | D15: =SUM('[2]1-3-2'!D15,'[2]1-3-3'!D15) -> 8 | E15: =SUM('[2]1-3-2'!E15,'[2]1-3-3'!E15) -> 62,040 | F15: =SUM('[2]1-3-2'!F15,'[2]1-3-3'!F15) -> 13,102 | G15: =SUM('[2]1-3-2'!G15,'[2]1-3-3'!G15) -> 501,332 | H15: =SUM('[2]1-3-2'!H15,'[2]1-3-3'!H15) -> 0 | I15: =SUM('[2]1-3-2'!I15,'[2]1-3-3'!I15) -> 0 | J15: =SUM('[2]1-3-2'!J15,'[2]1-3-3'!J15) -> 82,599 | K15: =SUM('[2]1-3-2'!K15,'[2]1-3-3'!K15) -> 630,741 | L15: =SUM('[2]1-3-2'!L15,'[2]1-3-3'!L15) -> 9,858 | M15: =SUM('[2]1-3-2'!M15,'[2]1-3-3'!M15) -> 48,293 | N15: =SUM('[2]1-3-2'!N15,'[2]1-3-3'!N15) -> 10,629 | O15: =SUM('[2]1-3-2'!O15,'[2]1-3-3'!O15) -> 113,185
A16: 시군세 계 | B16: 133,962 | C16: 9,854,715 | D16: =SUM(D17:D27) -> 28 | E16: =SUM(E17:E27) -> 397,052 | F16: 15,590 | G16: 3,430,285 | H16: 11 | I16: 84,727 | J16: 97,695 | K16: 4,483,283 | L16: 9,738 | M16: 884,712 | N16: 10,900 | O16: 574,656
A17: 주 민 세 | B17: 61,085 | C17: 1,005,355 | D17: =SUM('[2]1-3-2'!D17,'[2]1-3-3'!D17) -> 2 | E17: =SUM('[2]1-3-2'!E17,'[2]1-3-3'!E17) -> 5,805 | F17: =SUM('[2]1-3-2'!F17,'[2]1-3-3'!F17) -> 3,517 | G17: =SUM('[2]1-3-2'!G17,'[2]1-3-3'!G17) -> 355,088 | H17: =SUM('[2]1-3-2'!H17,'[2]1-3-3'!H17) -> 0 | I17: =SUM('[2]1-3-2'!I17,'[2]1-3-3'!I17) -> 0 | J17: =SUM('[2]1-3-2'!J17,'[2]1-3-3'!J17) -> 47,763 | K17: =SUM('[2]1-3-2'!K17,'[2]1-3-3'!K17) -> 490,449 | L17: =SUM('[2]1-3-2'!L17,'[2]1-3-3'!L17) -> 5,219 | M17: =SUM('[2]1-3-2'!M17,'[2]1-3-3'!M17) -> 49,315 | N17: =SUM('[2]1-3-2'!N17,'[2]1-3-3'!N17) -> 4,584 | O17: =SUM('[2]1-3-2'!O17,'[2]1-3-3'!O17) -> 104,698
A18: 재 산 세 | B18: 28,711 | C18: 2,629,570 | D18: =SUM('[2]1-3-2'!D18,'[2]1-3-3'!D18) -> 9 | E18: =SUM('[2]1-3-2'!E18,'[2]1-3-3'!E18) -> 337,372 | F18: =SUM('[2]1-3-2'!F18,'[2]1-3-3'!F18) -> 5,157 | G18: =SUM('[2]1-3-2'!G18,'[2]1-3-3'!G18) -> 1,245,190 | H18: =SUM('[2]1-3-2'!H18,'[2]1-3-3'!H18) -> 0 | I18: =SUM('[2]1-3-2'!I18,'[2]1-3-3'!I18) -> 0 | J18: =SUM('[2]1-3-2'!J18,'[2]1-3-3'!J18) -> 20,767 | K18: =SUM('[2]1-3-2'!K18,'[2]1-3-3'!K18) -> 956,758 | L18: =SUM('[2]1-3-2'!L18,'[2]1-3-3'!L18) -> 813 | M18: =SUM('[2]1-3-2'!M18,'[2]1-3-3'!M18) -> 35,731 | N18: =SUM('[2]1-3-2'!N18,'[2]1-3-3'!N18) -> 1,965 | O18: =SUM('[2]1-3-2'!O18,'[2]1-3-3'!O18) -> 54,519
A19: 자동차세 | B19: 36,380 | C19: 3,234,063 | D19: =SUM('[2]1-3-2'!D19,'[2]1-3-3'!D19) -> 0 | E19: =SUM('[2]1-3-2'!E19,'[2]1-3-3'!E19) -> 0 | F19: =SUM('[2]1-3-2'!F19,'[2]1-3-3'!F19) -> 5,006 | G19: =SUM('[2]1-3-2'!G19,'[2]1-3-3'!G19) -> 817,343 | H19: =SUM('[2]1-3-2'!H19,'[2]1-3-3'!H19) -> 0 | I19: =SUM('[2]1-3-2'!I19,'[2]1-3-3'!I19) -> 0 | J19: =SUM('[2]1-3-2'!J19,'[2]1-3-3'!J19) -> 24,768 | K19: =SUM('[2]1-3-2'!K19,'[2]1-3-3'!K19) -> 1,946,761 | L19: =SUM('[2]1-3-2'!L19,'[2]1-3-3'!L19) -> 2,821 | M19: =SUM('[2]1-3-2'!M19,'[2]1-3-3'!M19) -> 177,398 | N19: =SUM('[2]1-3-2'!N19,'[2]1-3-3'!N19) -> 3,785 | O19: =SUM('[2]1-3-2'!O19,'[2]1-3-3'!O19) -> 292,561
A20: 담배소비세 | B20: 0 | C20: 0 | D20: =SUM('[2]1-3-2'!D20,'[2]1-3-3'!D20) -> 0 | E20: =SUM('[2]1-3-2'!E20,'[2]1-3-3'!E20) -> 0 | F20: =SUM('[2]1-3-2'!F20,'[2]1-3-3'!F20) -> 0 | G20: =SUM('[2]1-3-2'!G20,'[2]1-3-3'!G20) -> 0 | H20: =SUM('[2]1-3-2'!H20,'[2]1-3-3'!H20) -> 0 | I20: =SUM('[2]1-3-2'!I20,'[2]1-3-3'!I20) -> 0 | J20: =SUM('[2]1-3-2'!J20,'[2]1-3-3'!J20) -> 0 | K20: =SUM('[2]1-3-2'!K20,'[2]1-3-3'!K20) -> 0 | L20: =SUM('[2]1-3-2'!L20,'[2]1-3-3'!L20) -> 0 | M20: =SUM('[2]1-3-2'!M20,'[2]1-3-3'!M20) -> 0 | N20: =SUM('[2]1-3-2'!N20,'[2]1-3-3'!N20) -> 0 | O20: =SUM('[2]1-3-2'!O20,'[2]1-3-3'!O20) -> 0
A21: 지방소득세 | B21: 3,864 | C21: 2,756,580 | D21: =SUM('[2]1-3-2'!D21,'[2]1-3-3'!D21) -> 16 | E21: =SUM('[2]1-3-2'!E21,'[2]1-3-3'!E21) -> 46,859 | F21: =SUM('[2]1-3-2'!F21,'[2]1-3-3'!F21) -> 821 | G21: =SUM('[2]1-3-2'!G21,'[2]1-3-3'!G21) -> 851,959 | H21: =SUM('[2]1-3-2'!H21,'[2]1-3-3'!H21) -> 11 | I21: =SUM('[2]1-3-2'!I21,'[2]1-3-3'!I21) -> 84,727 | J21: =SUM('[2]1-3-2'!J21,'[2]1-3-3'!J21) -> 2,645 | K21: =SUM('[2]1-3-2'!K21,'[2]1-3-3'!K21) -> 1,055,772 | L21: =SUM('[2]1-3-2'!L21,'[2]1-3-3'!L21) -> 289 | M21: =SUM('[2]1-3-2'!M21,'[2]1-3-3'!M21) -> 608,973 | N21: =SUM('[2]1-3-2'!N21,'[2]1-3-3'!N21) -> 82 | O21: =SUM('[2]1-3-2'!O21,'[2]1-3-3'!O21) -> 108,290
A22: 주행세 | B22: 0 | C22: 0 | D22: =SUM('[2]1-3-2'!D22,'[2]1-3-3'!D22) -> 0 | E22: =SUM('[2]1-3-2'!E22,'[2]1-3-3'!E22) -> 0 | F22: =SUM('[2]1-3-2'!F22,'[2]1-3-3'!F22) -> 0 | G22: =SUM('[2]1-3-2'!G22,'[2]1-3-3'!G22) -> 0 | H22: =SUM('[2]1-3-2'!H22,'[2]1-3-3'!H22) -> 0 | I22: =SUM('[2]1-3-2'!I22,'[2]1-3-3'!I22) -> 0 | J22: =SUM('[2]1-3-2'!J22,'[2]1-3-3'!J22) -> 0 | K22: =SUM('[2]1-3-2'!K22,'[2]1-3-3'!K22) -> 0 | L22: =SUM('[2]1-3-2'!L22,'[2]1-3-3'!L22) -> 0 | M22: =SUM('[2]1-3-2'!M22,'[2]1-3-3'!M22) -> 0 | N22: =SUM('[2]1-3-2'!N22,'[2]1-3-3'!N22) -> 0 | O22: =SUM('[2]1-3-2'!O22,'[2]1-3-3'!O22) -> 0
A23: 농업소득세 | B23: 0 | C23: 0 | D23: =SUM('[2]1-3-2'!D23,'[2]1-3-3'!D23) -> 0 | E23: =SUM('[2]1-3-2'!E23,'[2]1-3-3'!E23) -> 0 | F23: =SUM('[2]1-3-2'!F23,'[2]1-3-3'!F23) -> 0 | G23: =SUM('[2]1-3-2'!G23,'[2]1-3-3'!G23) -> 0 | H23: =SUM('[2]1-3-2'!H23,'[2]1-3-3'!H23) -> 0 | I23: =SUM('[2]1-3-2'!I23,'[2]1-3-3'!I23) -> 0 | J23: =SUM('[2]1-3-2'!J23,'[2]1-3-3'!J23) -> 0 | K23: =SUM('[2]1-3-2'!K23,'[2]1-3-3'!K23) -> 0 | L23: =SUM('[2]1-3-2'!L23,'[2]1-3-3'!L23) -> 0 | M23: =SUM('[2]1-3-2'!M23,'[2]1-3-3'!M23) -> 0 | N23: =SUM('[2]1-3-2'!N23,'[2]1-3-3'!N23) -> 0 | O23: =SUM('[2]1-3-2'!O23,'[2]1-3-3'!O23) -> 0
A24: 도축세 | B24: 0 | C24: 0 | D24: =SUM('[2]1-3-2'!D24,'[2]1-3-3'!D24) -> 0 | E24: =SUM('[2]1-3-2'!E24,'[2]1-3-3'!E24) -> 0 | F24: =SUM('[2]1-3-2'!F24,'[2]1-3-3'!F24) -> 0 | G24: =SUM('[2]1-3-2'!G24,'[2]1-3-3'!G24) -> 0 | H24: =SUM('[2]1-3-2'!H24,'[2]1-3-3'!H24) -> 0 | I24: =SUM('[2]1-3-2'!I24,'[2]1-3-3'!I24) -> 0 | J24: =SUM('[2]1-3-2'!J24,'[2]1-3-3'!J24) -> 0 | K24: =SUM('[2]1-3-2'!K24,'[2]1-3-3'!K24) -> 0 | L24: =SUM('[2]1-3-2'!L24,'[2]1-3-3'!L24) -> 0 | M24: =SUM('[2]1-3-2'!M24,'[2]1-3-3'!M24) -> 0 | N24: =SUM('[2]1-3-2'!N24,'[2]1-3-3'!N24) -> 0 | O24: =SUM('[2]1-3-2'!O24,'[2]1-3-3'!O24) -> 0
A25: 종합토지세 | B25: 1,265 | C25: 88,226 | D25: =SUM('[2]1-3-2'!D25,'[2]1-3-3'!D25) -> 0 | E25: =SUM('[2]1-3-2'!E25,'[2]1-3-3'!E25) -> 0 | F25: =SUM('[2]1-3-2'!F25,'[2]1-3-3'!F25) -> 307 | G25: =SUM('[2]1-3-2'!G25,'[2]1-3-3'!G25) -> 68,412 | H25: =SUM('[2]1-3-2'!H25,'[2]1-3-3'!H25) -> 0 | I25: =SUM('[2]1-3-2'!I25,'[2]1-3-3'!I25) -> 0 | J25: =SUM('[2]1-3-2'!J25,'[2]1-3-3'!J25) -> 677 | K25: =SUM('[2]1-3-2'!K25,'[2]1-3-3'!K25) -> 3,756 | L25: =SUM('[2]1-3-2'!L25,'[2]1-3-3'!L25) -> 131 | M25: =SUM('[2]1-3-2'!M25,'[2]1-3-3'!M25) -> 6,440 | N25: =SUM('[2]1-3-2'!N25,'[2]1-3-3'!N25) -> 150 | O25: =SUM('[2]1-3-2'!O25,'[2]1-3-3'!O25) -> 9,618
A26: 도시계획세 | B26: 2,631 | C26: 126,508 | D26: =SUM('[2]1-3-2'!D26,'[2]1-3-3'!D26) -> 1 | E26: =SUM('[2]1-3-2'!E26,'[2]1-3-3'!E26) -> 7,016 | F26: =SUM('[2]1-3-2'!F26,'[2]1-3-3'!F26) -> 767 | G26: =SUM('[2]1-3-2'!G26,'[2]1-3-3'!G26) -> 82,444 | H26: =SUM('[2]1-3-2'!H26,'[2]1-3-3'!H26) -> 0 | I26: =SUM('[2]1-3-2'!I26,'[2]1-3-3'!I26) -> 0 | J26: =SUM('[2]1-3-2'!J26,'[2]1-3-3'!J26) -> 1,069 | K26: =SUM('[2]1-3-2'!K26,'[2]1-3-3'!K26) -> 28,622 | L26: =SUM('[2]1-3-2'!L26,'[2]1-3-3'!L26) -> 463 | M26: =SUM('[2]1-3-2'!M26,'[2]1-3-3'!M26) -> 5,405 | N26: =SUM('[2]1-3-2'!N26,'[2]1-3-3'!N26) -> 331 | O26: =SUM('[2]1-3-2'!O26,'[2]1-3-3'!O26) -> 3,021
A27: 사업소세 | B27: 26 | C27: 14,413 | D27: =SUM('[2]1-3-2'!D27,'[2]1-3-3'!D27) -> 0 | E27: =SUM('[2]1-3-2'!E27,'[2]1-3-3'!E27) -> 0 | F27: =SUM('[2]1-3-2'!F27,'[2]1-3-3'!F27) -> 15 | G27: =SUM('[2]1-3-2'!G27,'[2]1-3-3'!G27) -> 9,849 | H27: =SUM('[2]1-3-2'!H27,'[2]1-3-3'!H27) -> 0 | I27: =SUM('[2]1-3-2'!I27,'[2]1-3-3'!I27) -> 0 | J27: =SUM('[2]1-3-2'!J27,'[2]1-3-3'!J27) -> 6 | K27: =SUM('[2]1-3-2'!K27,'[2]1-3-3'!K27) -> 1,165 | L27: =SUM('[2]1-3-2'!L27,'[2]1-3-3'!L27) -> 2 | M27: =SUM('[2]1-3-2'!M27,'[2]1-3-3'!M27) -> 1,450 | N27: =SUM('[2]1-3-2'!N27,'[2]1-3-3'!N27) -> 3 | O27: =SUM('[2]1-3-2'!O27,'[2]1-3-3'!O27) -> 1,949

Sheet 1-3-2
A1: 1-3-2. 체납액 사유별 현황
A2: (현년도) | O2: (단위 : 건, 천원)
A3: 구 분 | B3: 계 | D3: 징수유예 | F3: 부도 및 경영난 | H3: 소송계류 | J3: 고질체납 | L3: 무 재 산 | N3: 행방불명
B4: 건수 | C4: 금액 | D4: 건수 | E4: 금액 | F4: 건수 | G4: 금액 | H4: 건수 | I4: 금액 | J4: 건수 | K4: 금액 | L4: 건수 | M4: 금액 | N4: 건수 | O4: 금액
A5: 합 계 | B5: =+B6+B16 -> 113,662 | C5: 5,263,296 | D5: 1 | E5: 17,326 | F5: =+F6+F16 -> 7,469 | G5: =+G6+G16 -> 1,911,476 | H5: 0 | I5: 0 | J5: 92,782 | K5: 2,802,085 | L5: 4,500 | M5: 308,034 | N5: 8,910 | O5: 224,375
A6: 도세 계 | B6: =SUM(B7:B15) -> 58,001 | C6: 1,709,743 | D6: 1 | E6: 17,326 | F6: =SUM(F7:F15) -> 4,771 | G6: =SUM(G7:G15) -> 928,814 | H6: 0 | I6: 0 | J6: 46,112 | K6: 679,164 | L6: 2,359 | M6: 31,059 | N6: 4,758 | O6: 53,380
A7: 취 득 세 | B7: =SUM(D7,F7,H7,J7,L7,N7) -> 192 | C7: =SUM(E7,G7,I7,K7,M7,O7) -> 968,626 | D7: 1 | E7: 17,326 | F7: 68 | G7: 643,971 | J7: 104 | K7: 298,016 | L7: 19 | M7: 9,313
A8: 등록면허세 | B8: =SUM(D8,F8,H8,J8,L8,N8) -> 2,019 | C8: 35,874 | F8: 284 | G8: 9,139 | J8: 1,704 | K8: 26,188 | L8: 11 | M8: 188 | N8: 20 | O8: 359
A9: 지역자원시설세 | B9: 3,920 | C9: 182,107 | F9: 1,338 | G9: 125,553 | J9: 2,086 | K9: 47,349 | L9: 63 | M9: 1,684 | N9: 433 | O9: 7,521
A10: 지방소비세 | B10: 0 | C10: 0
A11: 등록세 | B11: 1 | C11: 145 | D11: 0 | E11: 0 | J11: 1 | K11: 145 | L11: 0 | M11: 0
A12: 면허세 | B12: 0 | C12: 0
A13: 공동시설세 | B13: 0 | C13: 0
A14: 지역개발세 | B14: 0 | C14: 0
A15: 지방교육세 | B15: 51,869 | C15: 522,991 | D15: 0 | E15: 0 | F15: 3,081 | G15: 150,151 | J15: 42,217 | K15: 307,466 | L15: 2,266 | M15: 19,874 | N15: 4,305 | O15: 45,500
A16: 시군세 계 | B16: =SUM(B17:B27) -> 55,661 | C16: 3,553,553 | D16: 0 | E16: 0 | F16: =SUM(F17:F27) -> 2,698 | G16: =SUM(G17:G27) -> 982,662 | H16: 0 | I16: 0 | J16: 46,670 | K16: 2,122,921 | L16: 2,141 | M16: 276,975 | N16: 4,152 | O16: 170,995
A17: 주 민 세 | B17: =SUM(D17,F17,H17,J17,L17,N17) -> 30,247 | C17: =SUM(E17,G17,I17,K17,M17,O17) -> 271,781 | F17: 254 | G17: 13,942 | J17: 25,786 | K17: 226,828 | L17: 1,665 | M17: 10,790 | N17: 2,542 | O17: 20,221
A18: 재 산 세 | B18: =SUM(D18,F18,H18,J18,L18,N18) -> 13,929 | C18: 1,289,592 | F18: 1,627 | G18: 673,167 | J18: 11,708 | K18: 598,242 | N18: 594 | O18: 18,183
A19: 자동차세 | B19: 10,076 | C19: 925,662 | F19: 720 | G19: 83,309 | J19: 7,924 | K19: 715,537 | L19: 454 | M19: 37,952 | N19: 978 | O19: 88,864
A20: 담배소비세 | B20: 0 | C20: 0
A21: 지방소득세 | B21: 1,407 | C21: 1,066,510 | F21: 95 | G21: 212,236 | J21: 1,252 | K21: 582,314 | L21: 22 | M21: 228,233 | N21: 38 | O21: 43,727
A22: 주행세 | B22: 0 | C22: 0
A23: 농업소득세 | B23: 0 | C23: 0
A24: 도축세 | B24: 0 | C24: 0
A25: 종합토지세 | B25: 0 | C25: 0
A26: 도시계획세 | B26: 2 | C26: 8 | F26: 2 | G26: 8
A27: 사업소세 | B27: 0 | C27: 0

Sheet 1-3-3
A1: 1-3-3. 체납액 사유별 현황
A2: (과년도) | O2: (단위 : 건, 천원)
A3: 구 분 | B3: 계 | D3: 징수유예 | F3: 부도 및 경영난 | H3: 소송계류 | J3: 고질체납 | L3: 무 재 산 | N3: 행방불명
B4: 건수 | C4: 금액 | D4: 건수 | E4: 금액 | F4: 건수 | G4: 금액 | H4: 건수 | I4: 금액 | J4: 건수 | K4: 금액 | L4: 건수 | M4: 금액 | N4: 건수 | O4: 금액
A5: 합 계 | B5: =+B6+B16 -> 148,477 | C5: 8,418,494 | D5: 41 | E5: 498,527 | F5: =+F6+F16 -> 24,347 | G5: =+G6+G16 -> 3,697,390 | H5: 11 | I5: 84,727 | J5: 95,039 | K5: 2,922,443 | L5: 15,495 | M5: 699,969 | N5: 13,544 | O5: 515,438
A6: 도세 계 | B6: =SUM(B7:B15) -> 70,176 | C6: 2,117,332 | D6: 13 | E6: 101,475 | F6: =SUM(F7:F15) -> 11,455 | G6: =SUM(G7:G15) -> 1,249,767 | H6: 0 | I6: 0 | J6: 44,014 | K6: 562,081 | L6: 7,898 | M6: 92,232 | N6: 6,796 | O6: 111,777
A7: 취 득 세 | B7: =SUM(D7,F7,H7,J7,L7,N7) -> 592 | C7: 999,658 | F7: 189 | G7: 732,232 | J7: 295 | K7: 174,603 | L7: 59 | M7: 56,593 | N7: 49 | O7: 36,230
A8: 등록면허세 | B8: 1,340 | C8: 16,620 | F8: 299 | G8: 5,594 | J8: 981 | K8: 10,347 | L8: 25 | M8: 289 | N8: 35 | O8: 390
A9: 지역자원시설세 | B9: 1,632 | C9: 142,998 | F9: 483 | G9: 105,367 | J9: 960 | K9: 32,431 | N9: 189 | O9: 5,200
A10: 지방소비세 | B10: 0 | C10: 0
A11: 등록세 | B11: =SUM(D11,F11,H11,J11,L11,N11) -> 113 | C11: 65,476 | F11: 19 | G11: 49,031 | J11: 78 | K11: 9,963 | L11: 11 | M11: 5,455 | N11: 5 | O11: 1,027
A12: 면허세 | B12: 1,170 | C12: 13,762 | F12: 202 | G12: 3,120 | J12: 782 | K12: 8,709 | L12: 101 | M12: 1,019 | N12: 85 | O12: 914
A13: 공동시설세 | B13: 964 | C13: 45,877 | D13: 5 | E13: 39,435 | F13: 220 | G13: 3,046 | J13: 527 | K13: 2,645 | L13: 110 | M13: 457 | N13: 102 | O13: 294
A14: 지역개발세 | B14: 38 | C14: 341 | F14: 22 | G14: 196 | J14: 9 | K14: 108 | N14: 7 | O14: 37
A15: 지방교육세 | B15: 64,327 | C15: 832,600 | D15: 8 | E15: 62,040 | F15: 10,021 | G15: 351,181 | J15: 40,382 | K15: 323,275 | L15: 7,592 | M15: 28,419 | N15: 6,324 | O15: 67,685
A16: 시군세 계 | B16: =SUM(B17:B27) -> 78,301 | C16: 6,301,162 | D16: 28 | E16: 397,052 | F16: =SUM(F17:F27) -> 12,892 | G16: =SUM(G17:G27) -> 2,447,623 | H16: 11 | I16: 84,727 | J16: 51,025 | K16: 2,360,362 | L16: 7,597 | M16: 607,737 | N16: 6,748 | O16: 403,661
A17: 주 민 세 | B17: =SUM(D17,F17,H17,J17,L17,N17) -> 30,838 | C17: =SUM(E17,G17,I17,K17,M17,O17) -> 733,574 | D17: 2 | E17: 5,805 | F17: 3,263 | G17: 341,146 | J17: 21,977 | K17: 263,621 | L17: 3,554 | M17: 38,525 | N17: 2,042 | O17: 84,477
A18: 재 산 세 | B18: =SUM(D18,F18,H18,J18,L18,N18) -> 14,782 | C18: 1,339,978 | D18: 9 | E18: 337,372 | F18: 3,530 | G18: 572,023 | J18: 9,059 | K18: 358,516 | L18: 813 | M18: 35,731 | N18: 1,371 | O18: 36,336
A19: 자동차세 | B19: 26,304 | C19: 2,308,401 | F19: 4,286 | G19: 734,034 | J19: 16,844 | K19: 1,231,224 | L19: 2,367 | M19: 139,446 | N19: 2,807 | O19: 203,697
A20: 담배소비세 | B20: =SUM(D20,F20,H20,J20,L20,N20) -> 0 | C20: =SUM(E20,G20,I20,K20,M20,O20) -> 0
A21: 지방소득세 | B21: 2,457 | C21: 1,690,070 | D21: 16 | E21: 46,859 | F21: 726 | G21: 639,723 | H21: 11 | I21: 84,727 | J21: 1,393 | K21: 473,458 | L21: 267 | M21: 380,740 | N21: 44 | O21: 64,563
A22: 주행세 | B22: 0 | C22: 0
A23: 농업소득세 | B23: 0 | C23: 0
A24: 도축세 | B24: 0 | C24: 0
A25: 종합토지세 | B25: 1,265 | C25: 88,226 | F25: 307 | G25: 68,412 | J25: 677 | K25: 3,756 | L25: 131 | M25: 6,440 | N25: 150 | O25: 9,618
A26: 도시계획세 | B26: 2,629 | C26: 126,500 | D26: 1 | E26: 7,016 | F26: 765 | G26: 82,436 | J26: 1,069 | K26: 28,622 | L26: 463 | M26: 5,405 | N26: 331 | O26: 3,021
A27: 사업소세 | B27: 26 | C27: 14,413 | F27: 15 | G27: 9,849 | J27: 6 | K27: 1,165 | L27: 2 | M27: 1,450 | N27: 3 | O27: 1,949

Sheet 1-1채권확보
A1: 1-1. 체납액 채권확보(재산압류) 내역
H2: (단위 : 천원)
A3: 구 분 | C3: 계 | E3: 현 년 도 | G3: 과 년 도
C4: 건 수 | D4: 금 액 | E4: 건 수 | F4: 금 액 | G4: 건 수 | H4: 금 액
A5: 합 계 | C5: =SUM(C6,C16) -> 221,057 | D5: 11,595,894 | E5: 93,532 | F5: 4,439,727 | G5: 127,525 | H5: 7,156,167
A6: 도 세 | B6: 소 계 | C6: =SUM(C7:C15) -> 108,802 | D6: 3,229,260 | E6: 47,822 | F6: 1,408,887 | G6: 60,980 | H6: 1,820,373
B7: 취 득 세 | C7: =SUM(E7,G7) -> 662 | D7: 1,653,669 | E7: 159 | F7: 803,960 | G7: 503 | H7: 849,709
B8: 등록면허세 | C8: 2,640 | D8: 40,867 | E8: 1,514 | F8: 26,906 | G8: 1,126 | H8: 13,961
B9: 지역자원시설세 | C9: =SUM(E9,G9) -> 4,549 | D9: =SUM(F9,H9) -> 271,133 | E9: 3,097 | F9: 143,865 | G9: 1,452 | H9: 127,268
B10: 지방소비세 | C10: 0 | D10: 0 | E10: 0 | F10: 0 | G10: 0 | H10: 0
B11: 등록세 | C11: 91 | D11: 52,454 | E11: 1 | F11: 73 | G11: 90 | H11: 52,381
B12: 면허세 | C12: 948 | D12: 11,147 | E12: 0 | F12: 0 | G12: 948 | H12: 11,147
B13: 공동시설세 | C13: 868 | D13: 41,289 | E13: 0 | F13: 0 | G13: 868 | H13: 41,289
B14: 지역개발세 | C14: =SUM(E14,G14) -> 29 | D14: =SUM(F14,H14) -> 256 | E14: 0 | F14: 0 | G14: 29 | H14: 256
B15: 지방교육세 | C15: 99,015 | D15: 1,158,445 | E15: 43,051 | F15: 434,083 | G15: 55,964 | H15: 724,362
A16: 시 군 세 | B16: 소 계 | C16: =SUM(C17:C27) -> 112,255 | D16: 8,366,634 | E16: 45,710 | F16: 3,030,840 | G16: 66,545 | H16: 5,335,794
B17: 주 민 세 | C17: =SUM(E17,G17) -> 47,047 | D17: 783,359 | E17: 22,685 | F17: 203,836 | G17: 24,362 | H17: 579,523
B18: 재 산 세 | C18: 25,405 | D18: 2,326,918 | E18: 12,397 | F18: 1,147,737 | G18: 13,008 | H18: 1,179,181
B19: 자 동 차세 | C19: 33,772 | D19: 3,003,108 | E19: 9,572 | F19: 879,379 | G19: 24,200 | H19: 2,123,729
B20: 담배소비세 | C20: 0 | D20: 0 | E20: 0 | F20: 0 | G20: 0 | H20: 0
B21: 지방소득세 | C21: 2,898 | D21: 2,067,436 | E21: 1,055 | F21: 799,883 | G21: 1,843 | H21: 1,267,553
B22: 주행세 | C22: 0 | D22: 0 | E22: 0 | F22: 0 | G22: 0 | H22: 0
B23: 농업소득세 | C23: 0 | D23: 0 | E23: 0 | F23: 0 | G23: 0 | H23: 0
B24: 도축세 | C24: 0 | D24: 0 | E24: 0 | F24: 0 | G24: 0 | H24: 0
B25: 종합토지세 | C25: 1,139 | D25: 79,403 | E25: 0 | F25: 0 | G25: 1,139 | H25: 79,403
B26: 도시계획세 | C26: 1,973 | D26: 94,880 | E26: 1 | F26: 5 | G26: 1,972 | H26: 94,875
B27: 사업소세 | C27: 21 | D27: 11,530 | E27: 0 | F27: 0 | G27: 21 | H27: 11,530

Sheet 2-3-1
A1: 2-3-1. 불납결손액 사유별 현황
A2: (총 계) | L2: (단위 : 건, 천원)
A3: 구 분 | B3: 계 | D3: 무재산 | F3: 행방불명 | H3: 시효소멸 | J3: 공매시 무배당(청산부족) | L3: 기타
B4: 건수 | C4: 금액 | D4: 건수 | E4: 금액 | F4: 건수 | G4: 금액 | H4: 건수 | I4: 금액 | J4: 건수 | K4: 금액 | L4: 건수 | M4: 금액
A5: 합 계 | B5: =+B6+B16 -> 12,172 | C5: 1,503,894 | D5: 2,166 | E5: 502,141 | F5: =+F6+F16 -> 494 | G5: =+G6+G16 -> 73,624 | H5: 8,851 | I5: 123,531 | J5: 148 | K5: 403,053 | L5: 513 | M5: 401,545
A6: 도세 계 | B6: =SUM(B7:B15) -> 5,642 | C6: 324,140 | D6: 963 | E6: 81,673 | F6: =SUM(F7:F15) -> 208 | G6: =SUM(G7:G15) -> 7,553 | H6: 4,171 | I6: 26,805 | J6: 85 | K6: 40,158 | L6: 215 | M6: 167,951
A7: 취 득 세 | B7: =SUM(D7,F7,H7,J7,L7) -> 73 | C7: =SUM(E7,G7,I7,K7,M7) -> 231,082 | D7: =SUM('2-3-2'!D7,'2-3-3'!D7) -> 17 | E7: =SUM('2-3-2'!E7,'2-3-3'!E7) -> 50,053 | F7: =SUM('2-3-2'!F7,'2-3-3'!F7) -> 4 | G7: =SUM('2-3-2'!G7,'2-3-3'!G7) -> 1,648 | H7: =SUM('2-3-2'!H7,'2-3-3'!H7) -> 46 | I7: =SUM('2-3-2'!I7,'2-3-3'!I7) -> 8,153 | J7: =SUM('2-3-2'!J7,'2-3-3'!J7) -> 1 | K7: =SUM('2-3-2'!K7,'2-3-3'!K7) -> 14,259 | L7: =SUM('2-3-2'!L7,'2-3-3'!L7) -> 5 | M7: =SUM('2-3-2'!M7,'2-3-3'!M7) -> 156,969
A8: 등록면허세 | B8: =SUM(D8,F8,H8,J8,L8) -> 5 | C8: 98 | D8: =SUM('2-3-2'!D8,'2-3-3'!D8) -> 0 | E8: =SUM('2-3-2'!E8,'2-3-3'!E8) -> 0 | F8: =SUM('2-3-2'!F8,'2-3-3'!F8) -> 0 | G8: =SUM('2-3-2'!G8,'2-3-3'!G8) -> 0 | H8: =SUM('2-3-2'!H8,'2-3-3'!H8) -> 0 | I8: =SUM('2-3-2'!I8,'2-3-3'!I8) -> 0 | J8: =SUM('2-3-2'!J8,'2-3-3'!J8) -> 3 | K8: =SUM('2-3-2'!K8,'2-3-3'!K8) -> 77 | L8: =SUM('2-3-2'!L8,'2-3-3'!L8) -> 2 | M8: =SUM('2-3-2'!M8,'2-3-3'!M8) -> 21
A9: 지역자원시설세 | B9: 23 | C9: 20,681 | D9: =SUM('2-3-2'!D9,'2-3-3'!D9) -> 11 | E9: =SUM('2-3-2'!E9,'2-3-3'!E9) -> 2,799 | F9: =SUM('2-3-2'!F9,'2-3-3'!F9) -> 0 | G9: =SUM('2-3-2'!G9,'2-3-3'!G9) -> 0 | H9: =SUM('2-3-2'!H9,'2-3-3'!H9) -> 0 | I9: =SUM('2-3-2'!I9,'2-3-3'!I9) -> 0 | J9: =SUM('2-3-2'!J9,'2-3-3'!J9) -> 11 | K9: =SUM('2-3-2'!K9,'2-3-3'!K9) -> 17,695 | L9: =SUM('2-3-2'!L9,'2-3-3'!L9) -> 1 | M9: =SUM('2-3-2'!M9,'2-3-3'!M9) -> 187
A10: 지방소비세 | B10: 0 | C10: 0 | D10: =SUM('2-3-2'!D10,'2-3-3'!D10) -> 0 | E10: =SUM('2-3-2'!E10,'2-3-3'!E10) -> 0 | F10: =SUM('2-3-2'!F10,'2-3-3'!F10) -> 0 | G10: =SUM('2-3-2'!G10,'2-3-3'!G10) -> 0 | H10: =SUM('2-3-2'!H10,'2-3-3'!H10) -> 0 | I10: =SUM('2-3-2'!I10,'2-3-3'!I10) -> 0 | J10: =SUM('2-3-2'!J10,'2-3-3'!J10) -> 0 | K10: =SUM('2-3-2'!K10,'2-3-3'!K10) -> 0 | L10: =SUM('2-3-2'!L10,'2-3-3'!L10) -> 0 | M10: =SUM('2-3-2'!M10,'2-3-3'!M10) -> 0
A11: 등록세 | B11: 9 | C11: 2,244 | D11: =SUM('2-3-2'!D11,'2-3-3'!D11) -> 2 | E11: =SUM('2-3-2'!E11,'2-3-3'!E11) -> 1,052 | F11: =SUM('2-3-2'!F11,'2-3-3'!F11) -> 1 | G11: =SUM('2-3-2'!G11,'2-3-3'!G11) -> 989 | H11: =SUM('2-3-2'!H11,'2-3-3'!H11) -> 6 | I11: =SUM('2-3-2'!I11,'2-3-3'!I11) -> 203 | J11: =SUM('2-3-2'!J11,'2-3-3'!J11) -> 0 | K11: =SUM('2-3-2'!K11,'2-3-3'!K11) -> 0 | L11: =SUM('2-3-2'!L11,'2-3-3'!L11) -> 0 | M11: =SUM('2-3-2'!M11,'2-3-3'!M11) -> 0
A12: 면허세 | B12: 273 | C12: 3,377 | D12: =SUM('2-3-2'!D12,'2-3-3'!D12) -> 47 | E12: =SUM('2-3-2'!E12,'2-3-3'!E12) -> 546 | F12: =SUM('2-3-2'!F12,'2-3-3'!F12) -> 5 | G12: =SUM('2-3-2'!G12,'2-3-3'!G12) -> 105 | H12: =SUM('2-3-2'!H12,'2-3-3'!H12) -> 212 | I12: =SUM('2-3-2'!I12,'2-3-3'!I12) -> 2,637 | J12: =SUM('2-3-2'!J12,'2-3-3'!J12) -> 7 | K12: =SUM('2-3-2'!K12,'2-3-3'!K12) -> 60 | L12: =SUM('2-3-2'!L12,'2-3-3'!L12) -> 2 | M12: =SUM('2-3-2'!M12,'2-3-3'!M12) -> 29
A13: 공동시설세 | B13: 135 | C13: 9,852 | D13: =SUM('2-3-2'!D13,'2-3-3'!D13) -> 44 | E13: =SUM('2-3-2'!E13,'2-3-3'!E13) -> 4,906 | F13: =SUM('2-3-2'!F13,'2-3-3'!F13) -> 17 | G13: =SUM('2-3-2'!G13,'2-3-3'!G13) -> 86 | H13: =SUM('2-3-2'!H13,'2-3-3'!H13) -> 68 | I13: =SUM('2-3-2'!I13,'2-3-3'!I13) -> 636 | J13: =SUM('2-3-2'!J13,'2-3-3'!J13) -> 4 | K13: =SUM('2-3-2'!K13,'2-3-3'!K13) -> 1,744 | L13: =SUM('2-3-2'!L13,'2-3-3'!L13) -> 2 | M13: =SUM('2-3-2'!M13,'2-3-3'!M13) -> 2,480
A14: 지역개발세 | B14: 19 | C14: 224 | D14: =SUM('2-3-2'!D14,'2-3-3'!D14) -> 2 | E14: =SUM('2-3-2'!E14,'2-3-3'!E14) -> 9 | F14: =SUM('2-3-2'!F14,'2-3-3'!F14) -> 0 | G14: =SUM('2-3-2'!G14,'2-3-3'!G14) -> 0 | H14: =SUM('2-3-2'!H14,'2-3-3'!H14) -> 2 | I14: =SUM('2-3-2'!I14,'2-3-3'!I14) -> 28 | J14: =SUM('2-3-2'!J14,'2-3-3'!J14) -> 15 | K14: =SUM('2-3-2'!K14,'2-3-3'!K14) -> 187 | L14: =SUM('2-3-2'!L14,'2-3-3'!L14) -> 0 | M14: =SUM('2-3-2'!M14,'2-3-3'!M14) -> 0
A15: 지방교육세 | B15: 5,105 | C15: 56,582 | D15: =SUM('2-3-2'!D15,'2-3-3'!D15) -> 840 | E15: =SUM('2-3-2'!E15,'2-3-3'!E15) -> 22,308 | F15: =SUM('2-3-2'!F15,'2-3-3'!F15) -> 181 | G15: =SUM('2-3-2'!G15,'2-3-3'!G15) -> 4,725 | H15: =SUM('2-3-2'!H15,'2-3-3'!H15) -> 3,837 | I15: =SUM('2-3-2'!I15,'2-3-3'!I15) -> 15,148 | J15: =SUM('2-3-2'!J15,'2-3-3'!J15) -> 44 | K15: =SUM('2-3-2'!K15,'2-3-3'!K15) -> 6,136 | L15: =SUM('2-3-2'!L15,'2-3-3'!L15) -> 203 | M15: =SUM('2-3-2'!M15,'2-3-3'!M15) -> 8,265
A16: 시군세 계 | B16: =SUM(B17:B27) -> 6,530 | C16: =SUM(C17:C27) -> 1,179,754 | D16: =SUM(D17:D27) -> 1,203 | E16: 420,468 | F16: =SUM(F17:F27) -> 286 | G16: =SUM(G17:G27) -> 66,071 | H16: 4,680 | I16: 96,726 | J16: 63 | K16: 362,895 | L16: 298 | M16: 233,594
A17: 주 민 세 | B17: =SUM(D17,F17,H17,J17,L17) -> 2,933 | C17: =SUM(E17,G17,I17,K17,M17) -> 106,538 | D17: =SUM('2-3-2'!D17,'2-3-3'!D17) -> 268 | E17: =SUM('2-3-2'!E17,'2-3-3'!E17) -> 63,785 | F17: =SUM('2-3-2'!F17,'2-3-3'!F17) -> 44 | G17: =SUM('2-3-2'!G17,'2-3-3'!G17) -> 2,617 | H17: =SUM('2-3-2'!H17,'2-3-3'!H17) -> 2,554 | I17: =SUM('2-3-2'!I17,'2-3-3'!I17) -> 28,870 | J17: =SUM('2-3-2'!J17,'2-3-3'!J17) -> 12 | K17: =SUM('2-3-2'!K17,'2-3-3'!K17) -> 617 | L17: =SUM('2-3-2'!L17,'2-3-3'!L17) -> 55 | M17: =SUM('2-3-2'!M17,'2-3-3'!M17) -> 10,649
A18: 재 산 세 | B18: =SUM(D18,F18,H18,J18,L18) -> 1,004 | C18: 119,083 | D18: =SUM('2-3-2'!D18,'2-3-3'!D18) -> 135 | E18: =SUM('2-3-2'!E18,'2-3-3'!E18) -> 35,612 | F18: =SUM('2-3-2'!F18,'2-3-3'!F18) -> 20 | G18: =SUM('2-3-2'!G18,'2-3-3'!G18) -> 397 | H18: =SUM('2-3-2'!H18,'2-3-3'!H18) -> 780 | I18: =SUM('2-3-2'!I18,'2-3-3'!I18) -> 8,614 | J18: =SUM('2-3-2'!J18,'2-3-3'!J18) -> 30 | K18: =SUM('2-3-2'!K18,'2-3-3'!K18) -> 45,029 | L18: =SUM('2-3-2'!L18,'2-3-3'!L18) -> 39 | M18: =SUM('2-3-2'!M18,'2-3-3'!M18) -> 29,431
A19: 자동차세 | B19: 2,026 | C19: 158,842 | D19: =SUM('2-3-2'!D19,'2-3-3'!D19) -> 663 | E19: =SUM('2-3-2'!E19,'2-3-3'!E19) -> 68,357 | F19: =SUM('2-3-2'!F19,'2-3-3'!F19) -> 195 | G19: =SUM('2-3-2'!G19,'2-3-3'!G19) -> 22,430 | H19: =SUM('2-3-2'!H19,'2-3-3'!H19) -> 1,036 | I19: =SUM('2-3-2'!I19,'2-3-3'!I19) -> 55,204 | J19: =SUM('2-3-2'!J19,'2-3-3'!J19) -> 7 | K19: =SUM('2-3-2'!K19,'2-3-3'!K19) -> 663 | L19: =SUM('2-3-2'!L19,'2-3-3'!L19) -> 125 | M19: =SUM('2-3-2'!M19,'2-3-3'!M19) -> 12,188
A20: 담배소비세 | B20: 0 | C20: 0 | D20: =SUM('2-3-2'!D20,'2-3-3'!D20) -> 0 | E20: =SUM('2-3-2'!E20,'2-3-3'!E20) -> 0 | F20: =SUM('2-3-2'!F20,'2-3-3'!F20) -> 0 | G20: =SUM('2-3-2'!G20,'2-3-3'!G20) -> 0 | H20: =SUM('2-3-2'!H20,'2-3-3'!H20) -> 0 | I20: =SUM('2-3-2'!I20,'2-3-3'!I20) -> 0 | J20: =SUM('2-3-2'!J20,'2-3-3'!J20) -> 0 | K20: =SUM('2-3-2'!K20,'2-3-3'!K20) -> 0 | L20: =SUM('2-3-2'!L20,'2-3-3'!L20) -> 0 | M20: =SUM('2-3-2'!M20,'2-3-3'!M20) -> 0
A21: 지방소득세 | B21: 89 | C21: 748,620 | D21: =SUM('2-3-2'!D21,'2-3-3'!D21) -> 62 | E21: =SUM('2-3-2'!E21,'2-3-3'!E21) -> 239,176 | F21: =SUM('2-3-2'!F21,'2-3-3'!F21) -> 9 | G21: =SUM('2-3-2'!G21,'2-3-3'!G21) -> 40,310 | H21: =SUM('2-3-2'!H21,'2-3-3'!H21) -> 0 | I21: =SUM('2-3-2'!I21,'2-3-3'!I21) -> 0 | J21: =SUM('2-3-2'!J21,'2-3-3'!J21) -> 8 | K21: =SUM('2-3-2'!K21,'2-3-3'!K21) -> 312,877 | L21: =SUM('2-3-2'!L21,'2-3-3'!L21) -> 10 | M21: =SUM('2-3-2'!M21,'2-3-3'!M21) -> 156,257
A22: 주행세 | B22: 0 | C22: 0 | D22: =SUM('2-3-2'!D22,'2-3-3'!D22) -> 0 | E22: =SUM('2-3-2'!E22,'2-3-3'!E22) -> 0 | F22: =SUM('2-3-2'!F22,'2-3-3'!F22) -> 0 | G22: =SUM('2-3-2'!G22,'2-3-3'!G22) -> 0 | H22: =SUM('2-3-2'!H22,'2-3-3'!H22) -> 0 | I22: =SUM('2-3-2'!I22,'2-3-3'!I22) -> 0 | J22: =SUM('2-3-2'!J22,'2-3-3'!J22) -> 0 | K22: =SUM('2-3-2'!K22,'2-3-3'!K22) -> 0 | L22: =SUM('2-3-2'!L22,'2-3-3'!L22) -> 0 | M22: =SUM('2-3-2'!M22,'2-3-3'!M22) -> 0
A23: 농업소득세 | B23: 0 | C23: 0 | D23: =SUM('2-3-2'!D23,'2-3-3'!D23) -> 0 | E23: =SUM('2-3-2'!E23,'2-3-3'!E23) -> 0 | F23: =SUM('2-3-2'!F23,'2-3-3'!F23) -> 0 | G23: =SUM('2-3-2'!G23,'2-3-3'!G23) -> 0 | H23: =SUM('2-3-2'!H23,'2-3-3'!H23) -> 0 | I23: =SUM('2-3-2'!I23,'2-3-3'!I23) -> 0 | J23: =SUM('2-3-2'!J23,'2-3-3'!J23) -> 0 | K23: =SUM('2-3-2'!K23,'2-3-3'!K23) -> 0 | L23: =SUM('2-3-2'!L23,'2-3-3'!L23) -> 0 | M23: =SUM('2-3-2'!M23,'2-3-3'!M23) -> 0
A24: 도축세 | B24: 0 | C24: 0 | D24: =SUM('2-3-2'!D24,'2-3-3'!D24) -> 0 | E24: =SUM('2-3-2'!E24,'2-3-3'!E24) -> 0 | F24: =SUM('2-3-2'!F24,'2-3-3'!F24) -> 0 | G24: =SUM('2-3-2'!G24,'2-3-3'!G24) -> 0 | H24: =SUM('2-3-2'!H24,'2-3-3'!H24) -> 0 | I24: =SUM('2-3-2'!I24,'2-3-3'!I24) -> 0 | J24: =SUM('2-3-2'!J24,'2-3-3'!J24) -> 0 | K24: =SUM('2-3-2'!K24,'2-3-3'!K24) -> 0 | L24: =SUM('2-3-2'!L24,'2-3-3'!L24) -> 0 | M24: =SUM('2-3-2'!M24,'2-3-3'!M24) -> 0
A25: 종합토지세 | B25: 120 | C25: 13,048 | D25: =SUM('2-3-2'!D25,'2-3-3'!D25) -> 18 | E25: =SUM('2-3-2'!E25,'2-3-3'!E25) -> 969 | F25: =SUM('2-3-2'!F25,'2-3-3'!F25) -> 0 | G25: =SUM('2-3-2'!G25,'2-3-3'!G25) -> 0 | H25: =SUM('2-3-2'!H25,'2-3-3'!H25) -> 68 | I25: =SUM('2-3-2'!I25,'2-3-3'!I25) -> 839 | J25: =SUM('2-3-2'!J25,'2-3-3'!J25) -> 0 | K25: =SUM('2-3-2'!K25,'2-3-3'!K25) -> 0 | L25: =SUM('2-3-2'!L25,'2-3-3'!L25) -> 34 | M25: =SUM('2-3-2'!M25,'2-3-3'!M25) -> 11,240
A26: 도시계획세 | B26: 353 | C26: 30,639 | D26: =SUM('2-3-2'!D26,'2-3-3'!D26) -> 57 | E26: =SUM('2-3-2'!E26,'2-3-3'!E26) -> 12,569 | F26: =SUM('2-3-2'!F26,'2-3-3'!F26) -> 18 | G26: =SUM('2-3-2'!G26,'2-3-3'!G26) -> 317 | H26: =SUM('2-3-2'!H26,'2-3-3'!H26) -> 240 | I26: =SUM('2-3-2'!I26,'2-3-3'!I26) -> 2,923 | J26: =SUM('2-3-2'!J26,'2-3-3'!J26) -> 3 | K26: =SUM('2-3-2'!K26,'2-3-3'!K26) -> 1,001 | L26: =SUM('2-3-2'!L26,'2-3-3'!L26) -> 35 | M26: =SUM('2-3-2'!M26,'2-3-3'!M26) -> 13,829
A27: 사업소세 | B27: 5 | C27: 2,984 | D27: =SUM('2-3-2'!D27,'2-3-3'!D27) -> 0 | E27: =SUM('2-3-2'!E27,'2-3-3'!E27) -> 0 | F27: =SUM('2-3-2'!F27,'2-3-3'!F27) -> 0 | G27: =SUM('2-3-2'!G27,'2-3-3'!G27) -> 0 | H27: =SUM('2-3-2'!H27,'2-3-3'!H27) -> 2 | I27: =SUM('2-3-2'!I27,'2-3-3'!I27) -> 276 | J27: =SUM('2-3-2'!J27,'2-3-3'!J27) -> 3 | K27: =SUM('2-3-2'!K27,'2-3-3'!K27) -> 2,708 | L27: =SUM('2-3-2'!L27,'2-3-3'!L27) -> 0 | M27: =SUM('2-3-2'!M27,'2-3-3'!M27) -> 0

Sheet 2-3-2
A1: 2-3-2. 불납결손액 사유별 현황
A2: (현년도) | M2: (단위 : 건, 천원)
A3: 구 분 | B3: 계 | D3: 무재산 | F3: 행방불명 | H3: 시효소멸 | J3: 공매시 무배당(청산부족) | L3: 기타
B4: 건수 | C4: 금액 | D4: 건수 | E4: 금액 | F4: 건수 | G4: 금액 | H4: 건수 | I4: 금액 | J4: 건수 | K4: 금액 | L4: 건수 | M4: 금액
A5: 합 계 | B5: =+B6+B16 -> 21 | C5: 877 | D5: 17 | E5: 423 | F5: =+F6+F16 -> 0 | G5: =+G6+G16 -> 0 | H5: 0 | I5: 0 | J5: 3 | K5: 77 | L5: 1 | M5: 377
A6: 도세 계 | B6: =SUM(B7:B15) -> 11 | C6: 118 | D6: 8 | E6: 41 | F6: =SUM(F7:F15) -> 0 | G6: =SUM(G7:G15) -> 0 | H6: 0 | I6: 0 | J6: 3 | K6: 77 | L6: 0 | M6: 0
A7: 취 득 세 | B7: =SUM(D7,F7,H7,J7,L7) -> 0 | C7: =SUM(E7,G7,I7,K7,M7) -> 0
A8: 등록면허세 | B8: =SUM(D8,F8,H8,J8,L8) -> 3 | C8: 77 | J8: 3 | K8: 77
A9: 지역자원시설세 | B9: 0 | C9: 0
A10: 지방소비세 | B10: 0 | C10: 0
A11: 등록세 | B11: 0 | C11: 0
A12: 면허세 | B12: 0 | C12: 0
A13: 공동시설세 | B13: 0 | C13: 0
A14: 지역개발세 | B14: 0 | C14: 0
A15: 지방교육세 | B15: 8 | C15: 41 | D15: 8 | E15: 41
A16: 시군세 계 | B16: =SUM(B17:B27) -> 10 | C16: 759 | D16: 9 | E16: 382 | F16: =SUM(F17:F27) -> 0 | G16: =SUM(G17:G27) -> 0 | H16: 0 | I16: 0 | J16: 0 | K16: 0 | L16: 1 | M16: 377
A17: 주 민 세 | B17: =SUM(D17,F17,H17,J17,L17) -> 0 | C17: =SUM(E17,G17,I17,K17,M17) -> 0
A18: 재 산 세 | B18: =SUM(D18,F18,H18,J18,L18) -> 3 | C18: 35 | D18: 3 | E18: 35
A19: 자동차세 | B19: 5 | C19: 123 | D19: 5 | E19: 123
A20: 담배소비세 | B20: 0 | C20: 0
A21: 지방소득세 | B21: 2 | C21: 601 | D21: 1 | E21: 224 | L21: 1 | M21: 377
A22: 주행세 | B22: 0 | C22: 0
A23: 농업소득세 | B23: 0 | C23: 0
A24: 도축세 | B24: 0 | C24: 0
A25: 종합토지세 | B25: 0 | C25: 0
A26: 도시계획세 | B26: 0 | C26: 0
A27: 사업소세 | B27: 0 | C27: 0

Sheet 2-3-3
A1: 2-3-3. 불납결손액 사유별 현황
A2: (과년도) | M2: (단위 : 건, 천원)
A3: 구 분 | B3: 계 | D3: 무재산 | F3: 행방불명 | H3: 시효소멸 | J3: 공매시 무배당(청산부족) | L3: 기타
B4: 건수 | C4: 금액 | D4: 건수 | E4: 금액 | F4: 건수 | G4: 금액 | H4: 건수 | I4: 금액 | J4: 건수 | K4: 금액 | L4: 건수 | M4: 금액
A5: 합 계 | B5: =+B6+B16 -> 12,151 | C5: 1,503,017 | D5: 2,149 | E5: 501,718 | F5: =+F6+F16 -> 494 | G5: =+G6+G16 -> 73,624 | H5: 8,851 | I5: 123,531 | J5: 145 | K5: 402,976 | L5: 512 | M5: 401,168
A6: 도세 계 | B6: =SUM(B7:B15) -> 5,631 | C6: 324,022 | D6: 955 | E6: 81,632 | F6: =SUM(F7:F15) -> 208 | G6: =SUM(G7:G15) -> 7,553 | H6: 4,171 | I6: 26,805 | J6: 82 | K6: 40,081 | L6: 215 | M6: 167,951
A7: 취 득 세 | B7: =SUM(D7,F7,H7,J7,L7) -> 73 | C7: =SUM(E7,G7,I7,K7,M7) -> 231,082 | D7: 17 | E7: 50,053 | F7: 4 | G7: 1,648 | H7: 46 | I7: 8,153 | J7: 1 | K7: 14,259 | L7: 5 | M7: 156,969
A8: 등록면허세 | B8: =SUM(D8,F8,H8,J8,L8) -> 2 | C8: 21 | L8: 2 | M8: 21
A9: 지역자원시설세 | B9: 23 | C9: 20,681 | D9: 11 | E9: 2,799 | J9: 11 | K9: 17,695 | L9: 1 | M9: 187
A10: 지방소비세 | B10: 0 | C10: 0
A11: 등록세 | B11: 9 | C11: 2,244 | D11: 2 | E11: 1,052 | F11: 1 | G11: 989 | H11: 6 | I11: 203
A12: 면허세 | B12: 273 | C12: 3,377 | D12: 47 | E12: 546 | F12: 5 | G12: 105 | H12: 212 | I12: 2,637 | J12: 7 | K12: 60 | L12: 2 | M12: 29
A13: 공동시설세 | B13: 135 | C13: 9,852 | D13: 44 | E13: 4,906 | F13: 17 | G13: 86 | H13: 68 | I13: 636 | J13: 4 | K13: 1,744 | L13: 2 | M13: 2,480
A14: 지역개발세 | B14: 19 | C14: 224 | D14: 2 | E14: 9 | H14: 2 | I14: 28 | J14: 15 | K14: 187
A15: 지방교육세 | B15: 5,097 | C15: 56,541 | D15: 832 | E15: 22,267 | F15: 181 | G15: 4,725 | H15: 3,837 | I15: 15,148 | J15: 44 | K15: 6,136 | L15: 203 | M15: 8,265
A16: 시군세 계 | B16: =SUM(B17:B27) -> 6,520 | C16: 1,178,995 | D16: 1,194 | E16: 420,086 | F16: =SUM(F17:F27) -> 286 | G16: =SUM(G17:G27) -> 66,071 | H16: 4,680 | I16: 96,726 | J16: 63 | K16: 362,895 | L16: 297 | M16: 233,217
A17: 주 민 세 | B17: =SUM(D17,F17,H17,J17,L17) -> 2,933 | C17: =SUM(E17,G17,I17,K17,M17) -> 106,538 | D17: 268 | E17: 63,785 | F17: 44 | G17: 2,617 | H17: 2,554 | I17: 28,870 | J17: 12 | K17: 617 | L17: 55 | M17: 10,649
A18: 재 산 세 | B18: =SUM(D18,F18,H18,J18,L18) -> 1,001 | C18: 119,048 | D18: 132 | E18: 35,577 | F18: 20 | G18: 397 | H18: 780 | I18: 8,614 | J18: 30 | K18: 45,029 | L18: 39 | M18: 29,431
A19: 자동차세 | B19: 2,021 | C19: 158,719 | D19: 658 | E19: 68,234 | F19: 195 | G19: 22,430 | H19: 1,036 | I19: 55,204 | J19: 7 | K19: 663 | L19: 125 | M19: 12,188
A20: 담배소비세 | B20: 0 | C20: 0
A21: 지방소득세 | B21: 87 | C21: 748,019 | D21: 61 | E21: 238,952 | F21: 9 | G21: 40,310 | J21: 8 | K21: 312,877 | L21: 9 | M21: 155,880
A22: 주행세 | B22: 0 | C22: 0
A23: 농업소득세 | B23: 0 | C23: 0
A24: 도축세 | B24: 0 | C24: 0
A25: 종합토지세 | B25: 120 | C25: 13,048 | D25: 18 | E25: 969 | H25: 68 | I25: 839 | J25: 0 | K25: 0 | L25: 34 | M25: 11,240
A26: 도시계획세 | B26: 353 | C26: 30,639 | D26: 57 | E26: 12,569 | F26: 18 | G26: 317 | H26: 240 | I26: 2,923 | J26: 3 | K26: 1,001 | L26: 35 | M26: 13,829
A27: 사업소세 | B27: 5 | C27: 2,984 | H27: 2 | I27: 276 | J27: 3 | K27: 2,708

Sheet 3-3-1
A1: 3-3-1. 과오납 환부액 사유별 현황
A2: (총 계) | O2: (단위 : 건, 천원)
A3: 구 분 | B3: 계 | D3: 이중납부 | F3: 과세면제 | H3: 계약해제 | J3: 행정소송 패소 | L3: 착오부과 | N3: 기 타(국세조정 등)
B4: 건수 | C4: 금액 | D4: 건수 | E4: 금액 | F4: 건수 | G4: 금액 | H4: 건수 | I4: 금액 | J4: 건수 | K4: 금액 | L4: 건수 | M4: 금액 | N4: 건수 | O4: 금액
A5: 합 계 | B5: =+B6+B16 -> 16,839 | C5: =+C6+C16 -> 3,660,128 | D5: 178 | E5: 40,845 | F5: =+F6+F16 -> 5,230 | G5: =+G6+G16 -> 417,557 | H5: 414 | I5: 114,271 | J5: 72 | K5: 70,006 | L5: 12 | M5: 2,730 | N5: 10,933 | O5: 3,014,719
A6: 도세 계 | B6: =SUM(B7:B15) -> 7,993 | C6: 508,690 | D6: 110 | E6: 23,308 | F6: =SUM(F7:F15) -> 4,732 | G6: =SUM(G7:G15) -> 272,906 | H6: 317 | I6: 83,570 | J6: 72 | K6: 70,006 | L6: 11 | M6: 2,713 | N6: 2,751 | O6: 56,187
A7: 취 득 세 | B7: =SUM(D7,F7,H7,J7,L7,N7) -> 210 | C7: 320,159 | D7: =SUM('[1]3-3-2'!D7,'[1]3-3-3'!D7) -> 14 | E7: =SUM('[1]3-3-2'!E7,'[1]3-3-3'!E7) -> 18,301 | F7: =SUM('[1]3-3-2'!F7,'[1]3-3-3'!F7) -> 113 | G7: =SUM('[1]3-3-2'!G7,'[1]3-3-3'!G7) -> 168,936 | H7: =SUM('[1]3-3-2'!H7,'[1]3-3-3'!H7) -> 41 | I7: =SUM('[1]3-3-2'!I7,'[1]3-3-3'!I7) -> 64,002 | J7: =SUM('[1]3-3-2'!J7,'[1]3-3-3'!J7) -> 36 | K7: =SUM('[1]3-3-2'!K7,'[1]3-3-3'!K7) -> 63,642 | L7: =SUM('[1]3-3-2'!L7,'[1]3-3-3'!L7) -> 5 | M7: =SUM('[1]3-3-2'!M7,'[1]3-3-3'!M7) -> 2,478 | N7: =SUM('[1]3-3-2'!N7,'[1]3-3-3'!N7) -> 1 | O7: =SUM('[1]3-3-2'!O7,'[1]3-3-3'!O7) -> 2,800
A8: 등록면허세 | B8: 4,317 | C8: 91,199 | D8: =SUM('[1]3-3-2'!D8,'[1]3-3-3'!D8) -> 29 | E8: =SUM('[1]3-3-2'!E8,'[1]3-3-3'!E8) -> 2,342 | F8: =SUM('[1]3-3-2'!F8,'[1]3-3-3'!F8) -> 4,210 | G8: =SUM('[1]3-3-2'!G8,'[1]3-3-3'!G8) -> 81,304 | H8: =SUM('[1]3-3-2'!H8,'[1]3-3-3'!H8) -> 75 | I8: =SUM('[1]3-3-2'!I8,'[1]3-3-3'!I8) -> 7,520 | J8: =SUM('[1]3-3-2'!J8,'[1]3-3-3'!J8) -> 0 | K8: =SUM('[1]3-3-2'!K8,'[1]3-3-3'!K8) -> 0 | L8: =SUM('[1]3-3-2'!L8,'[1]3-3-3'!L8) -> 2 | M8: =SUM('[1]3-3-2'!M8,'[1]3-3-3'!M8) -> 15 | N8: =SUM('[1]3-3-2'!N8,'[1]3-3-3'!N8) -> 1 | O8: =SUM('[1]3-3-2'!O8,'[1]3-3-3'!O8) -> 18
A9: 지역자원시설세 | B9: 986 | C9: 24,997 | D9: =SUM('[1]3-3-2'!D9,'[1]3-3-3'!D9) -> 0 | E9: =SUM('[1]3-3-2'!E9,'[1]3-3-3'!E9) -> 0 | F9: =SUM('[1]3-3-2'!F9,'[1]3-3-3'!F9) -> 8 | G9: =SUM('[1]3-3-2'!G9,'[1]3-3-3'!G9) -> 40 | H9: =SUM('[1]3-3-2'!H9,'[1]3-3-3'!H9) -> 7 | I9: =SUM('[1]3-3-2'!I9,'[1]3-3-3'!I9) -> 166 | J9: =SUM('[1]3-3-2'!J9,'[1]3-3-3'!J9) -> 0 | K9: =SUM('[1]3-3-2'!K9,'[1]3-3-3'!K9) -> 0 | L9: =SUM('[1]3-3-2'!L9,'[1]3-3-3'!L9) -> 0 | M9: =SUM('[1]3-3-2'!M9,'[1]3-3-3'!M9) -> 0 | N9: =SUM('[1]3-3-2'!N9,'[1]3-3-3'!N9) -> 971 | O9: =SUM('[1]3-3-2'!O9,'[1]3-3-3'!O9) -> 24,791
A10: 지방소비세 | B10: 0 | C10: 0 | D10: =SUM('[1]3-3-2'!D10,'[1]3-3-3'!D10) -> 0 | E10: =SUM('[1]3-3-2'!E10,'[1]3-3-3'!E10) -> 0 | F10: =SUM('[1]3-3-2'!F10,'[1]3-3-3'!F10) -> 0 | G10: =SUM('[1]3-3-2'!G10,'[1]3-3-3'!G10) -> 0 | H10: =SUM('[1]3-3-2'!H10,'[1]3-3-3'!H10) -> 0 | I10: =SUM('[1]3-3-2'!I10,'[1]3-3-3'!I10) -> 0 | J10: =SUM('[1]3-3-2'!J10,'[1]3-3-3'!J10) -> 0 | K10: =SUM('[1]3-3-2'!K10,'[1]3-3-3'!K10) -> 0 | L10: =SUM('[1]3-3-2'!L10,'[1]3-3-3'!L10) -> 0 | M10: =SUM('[1]3-3-2'!M10,'[1]3-3-3'!M10) -> 0 | N10: =SUM('[1]3-3-2'!N10,'[1]3-3-3'!N10) -> 0 | O10: =SUM('[1]3-3-2'!O10,'[1]3-3-3'!O10) -> 0
A11: 등록세 | B11: 11 | C11: 1,150 | D11: =SUM('[1]3-3-2'!D11,'[1]3-3-3'!D11) -> 0 | E11: =SUM('[1]3-3-2'!E11,'[1]3-3-3'!E11) -> 0 | F11: =SUM('[1]3-3-2'!F11,'[1]3-3-3'!F11) -> 4 | G11: =SUM('[1]3-3-2'!G11,'[1]3-3-3'!G11) -> 829 | H11: =SUM('[1]3-3-2'!H11,'[1]3-3-3'!H11) -> 7 | I11: =SUM('[1]3-3-2'!I11,'[1]3-3-3'!I11) -> 321 | J11: =SUM('[1]3-3-2'!J11,'[1]3-3-3'!J11) -> 0 | K11: =SUM('[1]3-3-2'!K11,'[1]3-3-3'!K11) -> 0 | L11: =SUM('[1]3-3-2'!L11,'[1]3-3-3'!L11) -> 0 | M11: =SUM('[1]3-3-2'!M11,'[1]3-3-3'!M11) -> 0 | N11: =SUM('[1]3-3-2'!N11,'[1]3-3-3'!N11) -> 0 | O11: =SUM('[1]3-3-2'!O11,'[1]3-3-3'!O11) -> 0
A12: 면허세 | B12: 0 | C12: 0 | D12: =SUM('[1]3-3-2'!D12,'[1]3-3-3'!D12) -> 0 | E12: =SUM('[1]3-3-2'!E12,'[1]3-3-3'!E12) -> 0 | F12: =SUM('[1]3-3-2'!F12,'[1]3-3-3'!F12) -> 0 | G12: =SUM('[1]3-3-2'!G12,'[1]3-3-3'!G12) -> 0 | H12: =SUM('[1]3-3-2'!H12,'[1]3-3-3'!H12) -> 0 | I12: =SUM('[1]3-3-2'!I12,'[1]3-3-3'!I12) -> 0 | J12: =SUM('[1]3-3-2'!J12,'[1]3-3-3'!J12) -> 0 | K12: =SUM('[1]3-3-2'!K12,'[1]3-3-3'!K12) -> 0 | L12: =SUM('[1]3-3-2'!L12,'[1]3-3-3'!L12) -> 0 | M12: =SUM('[1]3-3-2'!M12,'[1]3-3-3'!M12) -> 0 | N12: =SUM('[1]3-3-2'!N12,'[1]3-3-3'!N12) -> 0 | O12: =SUM('[1]3-3-2'!O12,'[1]3-3-3'!O12) -> 0
A13: 공동시설세 | B13: 0 | C13: 0 | D13: =SUM('[1]3-3-2'!D13,'[1]3-3-3'!D13) -> 0 | E13: =SUM('[1]3-3-2'!E13,'[1]3-3-3'!E13) -> 0 | F13: =SUM('[1]3-3-2'!F13,'[1]3-3-3'!F13) -> 0 | G13: =SUM('[1]3-3-2'!G13,'[1]3-3-3'!G13) -> 0 | H13: =SUM('[1]3-3-2'!H13,'[1]3-3-3'!H13) -> 0 | I13: =SUM('[1]3-3-2'!I13,'[1]3-3-3'!I13) -> 0 | J13: =SUM('[1]3-3-2'!J13,'[1]3-3-3'!J13) -> 0 | K13: =SUM('[1]3-3-2'!K13,'[1]3-3-3'!K13) -> 0 | L13: =SUM('[1]3-3-2'!L13,'[1]3-3-3'!L13) -> 0 | M13: =SUM('[1]3-3-2'!M13,'[1]3-3-3'!M13) -> 0 | N13: =SUM('[1]3-3-2'!N13,'[1]3-3-3'!N13) -> 0 | O13: =SUM('[1]3-3-2'!O13,'[1]3-3-3'!O13) -> 0
A14: 지역개발세 | B14: 0 | C14: 0 | D14: =SUM('[1]3-3-2'!D14,'[1]3-3-3'!D14) -> 0 | E14: =SUM('[1]3-3-2'!E14,'[1]3-3-3'!E14) -> 0 | F14: =SUM('[1]3-3-2'!F14,'[1]3-3-3'!F14) -> 0 | G14: =SUM('[1]3-3-2'!G14,'[1]3-3-3'!G14) -> 0 | H14: =SUM('[1]3-3-2'!H14,'[1]3-3-3'!H14) -> 0 | I14: =SUM('[1]3-3-2'!I14,'[1]3-3-3'!I14) -> 0 | J14: =SUM('[1]3-3-2'!J14,'[1]3-3-3'!J14) -> 0 | K14: =SUM('[1]3-3-2'!K14,'[1]3-3-3'!K14) -> 0 | L14: =SUM('[1]3-3-2'!L14,'[1]3-3-3'!L14) -> 0 | M14: =SUM('[1]3-3-2'!M14,'[1]3-3-3'!M14) -> 0 | N14: =SUM('[1]3-3-2'!N14,'[1]3-3-3'!N14) -> 0 | O14: =SUM('[1]3-3-2'!O14,'[1]3-3-3'!O14) -> 0
A15: 지방교육세 | B15: 2,469 | C15: 71,185 | D15: =SUM('[1]3-3-2'!D15,'[1]3-3-3'!D15) -> 67 | E15: =SUM('[1]3-3-2'!E15,'[1]3-3-3'!E15) -> 2,665 | F15: =SUM('[1]3-3-2'!F15,'[1]3-3-3'!F15) -> 397 | G15: =SUM('[1]3-3-2'!G15,'[1]3-3-3'!G15) -> 21,797 | H15: =SUM('[1]3-3-2'!H15,'[1]3-3-3'!H15) -> 187 | I15: =SUM('[1]3-3-2'!I15,'[1]3-3-3'!I15) -> 11,561 | J15: =SUM('[1]3-3-2'!J15,'[1]3-3-3'!J15) -> 36 | K15: =SUM('[1]3-3-2'!K15,'[1]3-3-3'!K15) -> 6,364 | L15: =SUM('[1]3-3-2'!L15,'[1]3-3-3'!L15) -> 4 | M15: =SUM('[1]3-3-2'!M15,'[1]3-3-3'!M15) -> 220 | N15: =SUM('[1]3-3-2'!N15,'[1]3-3-3'!N15) -> 1,778 | O15: =SUM('[1]3-3-2'!O15,'[1]3-3-3'!O15) -> 28,578
A16: 시군세 계 | B16: =SUM(B17:B27) -> 8,846 | C16: 3,151,438 | D16: 68 | E16: 17,537 | F16: =SUM(F17:F27) -> 498 | G16: =SUM(G17:G27) -> 144,651 | H16: 97 | I16: 30,701 | J16: 0 | K16: 0 | L16: 1 | M16: 17 | N16: 8,182 | O16: 2,958,532
A17: 주 민 세 | B17: =SUM(D17,F17,H17,J17,L17,N17) -> 57 | C17: =SUM(E17,G17,I17,K17,M17,O17) -> 112,106 | D17: =SUM('[1]3-3-2'!D17,'[1]3-3-3'!D17) -> 9 | E17: =SUM('[1]3-3-2'!E17,'[1]3-3-3'!E17) -> 99 | F17: =SUM('[1]3-3-2'!F17,'[1]3-3-3'!F17) -> 12 | G17: =SUM('[1]3-3-2'!G17,'[1]3-3-3'!G17) -> 4,830 | H17: =SUM('[1]3-3-2'!H17,'[1]3-3-3'!H17) -> 13 | I17: =SUM('[1]3-3-2'!I17,'[1]3-3-3'!I17) -> 1,068 | J17: =SUM('[1]3-3-2'!J17,'[1]3-3-3'!J17) -> 0 | K17: =SUM('[1]3-3-2'!K17,'[1]3-3-3'!K17) -> 0 | L17: =SUM('[1]3-3-2'!L17,'[1]3-3-3'!L17) -> 0 | M17: =SUM('[1]3-3-2'!M17,'[1]3-3-3'!M17) -> 0 | N17: =SUM('[1]3-3-2'!N17,'[1]3-3-3'!N17) -> 23 | O17: =SUM('[1]3-3-2'!O17,'[1]3-3-3'!O17) -> 106,109
A18: 재 산 세 | B18: =SUM(D18,F18,H18,J18,L18,N18) -> 117 | C18: 38,862 | D18: =SUM('[1]3-3-2'!D18,'[1]3-3-3'!D18) -> 12 | E18: =SUM('[1]3-3-2'!E18,'[1]3-3-3'!E18) -> 111 | F18: =SUM('[1]3-3-2'!F18,'[1]3-3-3'!F18) -> 31 | G18: =SUM('[1]3-3-2'!G18,'[1]3-3-3'!G18) -> 4,819 | H18: =SUM('[1]3-3-2'!H18,'[1]3-3-3'!H18) -> 73 | I18: =SUM('[1]3-3-2'!I18,'[1]3-3-3'!I18) -> 27,863 | J18: =SUM('[1]3-3-2'!J18,'[1]3-3-3'!J18) -> 0 | K18: =SUM('[1]3-3-2'!K18,'[1]3-3-3'!K18) -> 0 | L18: =SUM('[1]3-3-2'!L18,'[1]3-3-3'!L18) -> 0 | M18: =SUM('[1]3-3-2'!M18,'[1]3-3-3'!M18) -> 0 | N18: =SUM('[1]3-3-2'!N18,'[1]3-3-3'!N18) -> 1 | O18: =SUM('[1]3-3-2'!O18,'[1]3-3-3'!O18) -> 6,069
A19: 자동차세 | B19: 3,357 | C19: 145,726 | D19: =SUM('[1]3-3-2'!D19,'[1]3-3-3'!D19) -> 16 | E19: =SUM('[1]3-3-2'!E19,'[1]3-3-3'!E19) -> 1,738 | F19: =SUM('[1]3-3-2'!F19,'[1]3-3-3'!F19) -> 283 | G19: =SUM('[1]3-3-2'!G19,'[1]3-3-3'!G19) -> 31,154 | H19: =SUM('[1]3-3-2'!H19,'[1]3-3-3'!H19) -> 0 | I19: =SUM('[1]3-3-2'!I19,'[1]3-3-3'!I19) -> 0 | J19: =SUM('[1]3-3-2'!J19,'[1]3-3-3'!J19) -> 0 | K19: =SUM('[1]3-3-2'!K19,'[1]3-3-3'!K19) -> 0 | L19: =SUM('[1]3-3-2'!L19,'[1]3-3-3'!L19) -> 0 | M19: =SUM('[1]3-3-2'!M19,'[1]3-3-3'!M19) -> 0 | N19: =SUM('[1]3-3-2'!N19,'[1]3-3-3'!N19) -> 3,058 | O19: =SUM('[1]3-3-2'!O19,'[1]3-3-3'!O19) -> 112,834
A20: 담배소비세 | B20: 2 | C20: 5 | D20: =SUM('[1]3-3-2'!D20,'[1]3-3-3'!D20) -> 0 | E20: =SUM('[1]3-3-2'!E20,'[1]3-3-3'!E20) -> 0 | F20: =SUM('[1]3-3-2'!F20,'[1]3-3-3'!F20) -> 2 | G20: =SUM('[1]3-3-2'!G20,'[1]3-3-3'!G20) -> 5 | H20: =SUM('[1]3-3-2'!H20,'[1]3-3-3'!H20) -> 0 | I20: =SUM('[1]3-3-2'!I20,'[1]3-3-3'!I20) -> 0 | J20: =SUM('[1]3-3-2'!J20,'[1]3-3-3'!J20) -> 0 | K20: =SUM('[1]3-3-2'!K20,'[1]3-3-3'!K20) -> 0 | L20: =SUM('[1]3-3-2'!L20,'[1]3-3-3'!L20) -> 0 | M20: =SUM('[1]3-3-2'!M20,'[1]3-3-3'!M20) -> 0 | N20: =SUM('[1]3-3-2'!N20,'[1]3-3-3'!N20) -> 0 | O20: =SUM('[1]3-3-2'!O20,'[1]3-3-3'!O20) -> 0
A21: 지방소득세 | B21: 5,309 | C21: 2,854,682 | D21: =SUM('[1]3-3-2'!D21,'[1]3-3-3'!D21) -> 31 | E21: =SUM('[1]3-3-2'!E21,'[1]3-3-3'!E21) -> 15,589 | F21: =SUM('[1]3-3-2'!F21,'[1]3-3-3'!F21) -> 168 | G21: =SUM('[1]3-3-2'!G21,'[1]3-3-3'!G21) -> 103,837 | H21: =SUM('[1]3-3-2'!H21,'[1]3-3-3'!H21) -> 9 | I21: =SUM('[1]3-3-2'!I21,'[1]3-3-3'!I21) -> 1,719 | J21: =SUM('[1]3-3-2'!J21,'[1]3-3-3'!J21) -> 0 | K21: =SUM('[1]3-3-2'!K21,'[1]3-3-3'!K21) -> 0 | L21: =SUM('[1]3-3-2'!L21,'[1]3-3-3'!L21) -> 1 | M21: =SUM('[1]3-3-2'!M21,'[1]3-3-3'!M21) -> 17 | N21: =SUM('[1]3-3-2'!N21,'[1]3-3-3'!N21) -> 5,100 | O21: =SUM('[1]3-3-2'!O21,'[1]3-3-3'!O21) -> 2,733,520
A22: 주행세 | B22: 0 | C22: 0 | D22: =SUM('[1]3-3-2'!D22,'[1]3-3-3'!D22) -> 0 | E22: =SUM('[1]3-3-2'!E22,'[1]3-3-3'!E22) -> 0 | F22: =SUM('[1]3-3-2'!F22,'[1]3-3-3'!F22) -> 0 | G22: =SUM('[1]3-3-2'!G22,'[1]3-3-3'!G22) -> 0 | H22: =SUM('[1]3-3-2'!H22,'[1]3-3-3'!H22) -> 0 | I22: =SUM('[1]3-3-2'!I22,'[1]3-3-3'!I22) -> 0 | J22: =SUM('[1]3-3-2'!J22,'[1]3-3-3'!J22) -> 0 | K22: =SUM('[1]3-3-2'!K22,'[1]3-3-3'!K22) -> 0 | L22: =SUM('[1]3-3-2'!L22,'[1]3-3-3'!L22) -> 0 | M22: =SUM('[1]3-3-2'!M22,'[1]3-3-3'!M22) -> 0 | N22: =SUM('[1]3-3-2'!N22,'[1]3-3-3'!N22) -> 0 | O22: =SUM('[1]3-3-2'!O22,'[1]3-3-3'!O22) -> 0
A23: 농업소득세 | B23: 0 | C23: 0 | D23: =SUM('[1]3-3-2'!D23,'[1]3-3-3'!D23) -> 0 | E23: =SUM('[1]3-3-2'!E23,'[1]3-3-3'!E23) -> 0 | F23: =SUM('[1]3-3-2'!F23,'[1]3-3-3'!F23) -> 0 | G23: =SUM('[1]3-3-2'!G23,'[1]3-3-3'!G23) -> 0 | H23: =SUM('[1]3-3-2'!H23,'[1]3-3-3'!H23) -> 0 | I23: =SUM('[1]3-3-2'!I23,'[1]3-3-3'!I23) -> 0 | J23: =SUM('[1]3-3-2'!J23,'[1]3-3-3'!J23) -> 0 | K23: =SUM('[1]3-3-2'!K23,'[1]3-3-3'!K23) -> 0 | L23: =SUM('[1]3-3-2'!L23,'[1]3-3-3'!L23) -> 0 | M23: =SUM('[1]3-3-2'!M23,'[1]3-3-3'!M23) -> 0 | N23: =SUM('[1]3-3-2'!N23,'[1]3-3-3'!N23) -> 0 | O23: =SUM('[1]3-3-2'!O23,'[1]3-3-3'!O23) -> 0
A24: 도축세 | B24: 0 | C24: 0 | D24: =SUM('[1]3-3-2'!D24,'[1]3-3-3'!D24) -> 0 | E24: =SUM('[1]3-3-2'!E24,'[1]3-3-3'!E24) -> 0 | F24: =SUM('[1]3-3-2'!F24,'[1]3-3-3'!F24) -> 0 | G24: =SUM('[1]3-3-2'!G24,'[1]3-3-3'!G24) -> 0 | H24: =SUM('[1]3-3-2'!H24,'[1]3-3-3'!H24) -> 0 | I24: =SUM('[1]3-3-2'!I24,'[1]3-3-3'!I24) -> 0 | J24: =SUM('[1]3-3-2'!J24,'[1]3-3-3'!J24) -> 0 | K24: =SUM('[1]3-3-2'!K24,'[1]3-3-3'!K24) -> 0 | L24: =SUM('[1]3-3-2'!L24,'[1]3-3-3'!L24) -> 0 | M24: =SUM('[1]3-3-2'!M24,'[1]3-3-3'!M24) -> 0 | N24: =SUM('[1]3-3-2'!N24,'[1]3-3-3'!N24) -> 0 | O24: =SUM('[1]3-3-2'!O24,'[1]3-3-3'!O24) -> 0
A25: 종합토지세 | B25: 0 | C25: 0 | D25: =SUM('[1]3-3-2'!D25,'[1]3-3-3'!D25) -> 0 | E25: =SUM('[1]3-3-2'!E25,'[1]3-3-3'!E25) -> 0 | F25: =SUM('[1]3-3-2'!F25,'[1]3-3-3'!F25) -> 0 | G25: =SUM('[1]3-3-2'!G25,'[1]3-3-3'!G25) -> 0 | H25: =SUM('[1]3-3-2'!H25,'[1]3-3-3'!H25) -> 0 | I25: =SUM('[1]3-3-2'!I25,'[1]3-3-3'!I25) -> 0 | J25: =SUM('[1]3-3-2'!J25,'[1]3-3-3'!J25) -> 0 | K25: =SUM('[1]3-3-2'!K25,'[1]3-3-3'!K25) -> 0 | L25: =SUM('[1]3-3-2'!L25,'[1]3-3-3'!L25) -> 0 | M25: =SUM('[1]3-3-2'!M25,'[1]3-3-3'!M25) -> 0 | N25: =SUM('[1]3-3-2'!N25,'[1]3-3-3'!N25) -> 0 | O25: =SUM('[1]3-3-2'!O25,'[1]3-3-3'!O25) -> 0
A26: 도시계획세 | B26: 4 | C26: 57 | D26: =SUM('[1]3-3-2'!D26,'[1]3-3-3'!D26) -> 0 | E26: =SUM('[1]3-3-2'!E26,'[1]3-3-3'!E26) -> 0 | F26: =SUM('[1]3-3-2'!F26,'[1]3-3-3'!F26) -> 2 | G26: =SUM('[1]3-3-2'!G26,'[1]3-3-3'!G26) -> 6 | H26: =SUM('[1]3-3-2'!H26,'[1]3-3-3'!H26) -> 2 | I26: =SUM('[1]3-3-2'!I26,'[1]3-3-3'!I26) -> 51 | J26: =SUM('[1]3-3-2'!J26,'[1]3-3-3'!J26) -> 0 | K26: =SUM('[1]3-3-2'!K26,'[1]3-3-3'!K26) -> 0 | L26: =SUM('[1]3-3-2'!L26,'[1]3-3-3'!L26) -> 0 | M26: =SUM('[1]3-3-2'!M26,'[1]3-3-3'!M26) -> 0 | N26: =SUM('[1]3-3-2'!N26,'[1]3-3-3'!N26) -> 0 | O26: =SUM('[1]3-3-2'!O26,'[1]3-3-3'!O26) -> 0
A27: 사업소세 | B27: 0 | C27: 0 | D27: =SUM('[1]3-3-2'!D27,'[1]3-3-3'!D27) -> 0 | E27: =SUM('[1]3-3-2'!E27,'[1]3-3-3'!E27) -> 0 | F27: =SUM('[1]3-3-2'!F27,'[1]3-3-3'!F27) -> 0 | G27: =SUM('[1]3-3-2'!G27,'[1]3-3-3'!G27) -> 0 | H27: =SUM('[1]3-3-2'!H27,'[1]3-3-3'!H27) -> 0 | I27: =SUM('[1]3-3-2'!I27,'[1]3-3-3'!I27) -> 0 | J27: =SUM('[1]3-3-2'!J27,'[1]3-3-3'!J27) -> 0 | K27: =SUM('[1]3-3-2'!K27,'[1]3-3-3'!K27) -> 0 | L27: =SUM('[1]3-3-2'!L27,'[1]3-3-3'!L27) -> 0 | M27: =SUM('[1]3-3-2'!M27,'[1]3-3-3'!M27) -> 0 | N27: =SUM('[1]3-3-2'!N27,'[1]3-3-3'!N27) -> 0 | O27: =SUM('[1]3-3-2'!O27,'[1]3-3-3'!O27) -> 0

Sheet 3-3-2
A1: 3-3-2. 과오납 환부액 사유별 현황
A2: (현년도) | O2: (단위 : 건, 천원)
A3: 구 분 | B3: 계 | D3: 이중납부 | F3: 과세면제 | H3: 계약해제 | J3: 행정소송 패소 | L3: 착오부과 | N3: 기 타(국세조정 등)
B4: 건수 | C4: 금액 | D4: 건수 | E4: 금액 | F4: 건수 | G4: 금액 | H4: 건수 | I4: 금액 | J4: 건수 | K4: 금액 | L4: 건수 | M4: 금액 | N4: 건수 | O4: 금액
A5: 합 계 | B5: =+B6+B16 -> 15,139 | C5: 1,070,776 | D5: 165 | E5: 40,566 | F5: =+F6+F16 -> 5,035 | G5: =+G6+G16 -> 323,239 | H5: 290 | I5: 103,848 | J5: 0 | K5: 0 | L5: 11 | M5: 2,713 | N5: 9,638 | O5: 600,410
A6: 도세 계 | B6: =SUM(B7:B15) -> 7,489 | C6: 392,047 | D6: 103 | E6: 23,276 | F6: =SUM(F7:F15) -> 4,652 | G6: =SUM(G7:G15) -> 237,931 | H6: 248 | I6: 75,149 | J6: 0 | K6: 0 | L6: 11 | M6: 2,713 | N6: 2,475 | O6: 52,978
A7: 취 득 세 | B7: =SUM(D7,F7,H7,J7,L7,N7) -> 145 | C7: 216,865 | D7: 14 | E7: 18,301 | F7: 92 | G7: 136,990 | H7: 33 | I7: 56,296 | L7: 5 | M7: 2,478 | N7: 1 | O7: 2,800
A8: 등록면허세 | B8: 4,310 | C8: 90,730 | D8: 28 | E8: 2,336 | F8: 4,209 | G8: 81,225 | H8: 70 | I8: 7,136 | L8: 2 | M8: 15 | N8: 1 | O8: 18
A9: 지역자원시설세 | B9: 986 | C9: 24,997 | F9: 8 | G9: 40 | H9: 7 | I9: 166 | N9: 971 | O9: 24,791
A10: 지방소비세 | B10: 0 | C10: 0
A11: 등록세 | B11: 8 | C11: 388 | F11: 1 | G11: 67 | H11: 7 | I11: 321
A12: 면허세 | B12: 0 | C12: 0
A13: 공동시설세 | B13: 0 | C13: 0
A14: 지역개발세 | B14: 0 | C14: 0
A15: 지방교육세 | B15: 2,040 | C15: 59,067 | D15: 61 | E15: 2,639 | F15: 342 | G15: 19,609 | H15: 131 | I15: 11,230 | L15: 4 | M15: 220 | N15: 1,502 | O15: 25,369
A16: 시군세 계 | B16: =SUM(B17:B27) -> 7,650 | C16: 678,729 | D16: 62 | E16: 17,290 | F16: =SUM(F17:F27) -> 383 | G16: =SUM(G17:G27) -> 85,308 | H16: 42 | I16: 28,699 | J16: 0 | K16: 0 | L16: 0 | M16: 0 | N16: 7,163 | O16: 547,432
A17: 주 민 세 | B17: =SUM(D17,F17,H17,J17,L17,N17) -> 23 | C17: =SUM(E17,G17,I17,K17,M17,O17) -> 1,969 | D17: 9 | E17: 99 | F17: 8 | G17: 1,412 | H17: 6 | I17: 458
A18: 재 산 세 | B18: =SUM(D18,F18,H18,J18,L18,N18) -> 49 | C18: 35,426 | D18: 8 | E18: 81 | F18: 11 | G18: 2,537 | H18: 29 | I18: 26,739 | N18: 1 | O18: 6,069
A19: 자동차세 | B19: 3,059 | C19: 133,015 | D19: 15 | E19: 1,675 | F19: 261 | G19: 29,394 | N19: 2,783 | O19: 101,946
A20: 담배소비세 | B20: 0 | C20: 0
A21: 지방소득세 | B21: 4,519 | C21: 508,319 | D21: 30 | E21: 15,435 | F21: 103 | G21: 51,965 | H21: 7 | I21: 1,502 | N21: 4,379 | O21: 439,417
A22: 주행세 | B22: 0 | C22: 0
A23: 농업소득세 | B23: 0 | C23: 0
A24: 도축세 | B24: 0 | C24: 0
A25: 종합토지세 | B25: 0 | C25: 0
A26: 도시계획세 | B26: 0 | C26: 0
A27: 사업소세 | B27: 0 | C27: 0

Sheet 3-3-3
A1: 3-3-3. 과오납 환부액 사유별 현황
A2: (과년도) | O2: (단위 : 건, 천원)
A3: 구 분 | B3: 계 | D3: 이중납부 | F3: 과세면제 | H3: 계약해제 | J3: 행정소송 패소 | L3: 착오부과 | N3: 기 타(국세조정 등)
B4: 건수 | C4: 금액 | D4: 건수 | E4: 금액 | F4: 건수 | G4: 금액 | H4: 건수 | I4: 금액 | J4: 건수 | K4: 금액 | L4: 건수 | M4: 금액 | N4: 건수 | O4: 금액
A5: 합 계 | B5: =+B6+B16 -> 1,700 | C5: =C6+C16 -> 2,589,352 | D5: 13 | E5: 279 | F5: =+F6+F16 -> 195 | G5: =+G6+G16 -> 94,318 | H5: 124 | I5: 10,423 | J5: 72 | K5: 70,006 | L5: 1 | M5: 17 | N5: 1,295 | O5: 2,414,309
A6: 도세 계 | B6: =SUM(B7:B15) -> 504 | C6: 116,643 | D6: 7 | E6: 32 | F6: =SUM(F7:F15) -> 80 | G6: =SUM(G7:G15) -> 34,975 | H6: 69 | I6: 8,421 | J6: 72 | K6: 70,006 | L6: 0 | M6: 0 | N6: 276 | O6: 3,209
A7: 취 득 세 | B7: =SUM(D7,F7,H7,J7,L7,N7) -> 65 | C7: 103,294 | F7: 21 | G7: 31,946 | H7: 8 | I7: 7,706 | J7: 36 | K7: 63,642
A8: 등록면허세 | B8: 7 | C8: 469 | D8: 1 | E8: 6 | F8: 1 | G8: 79 | H8: 5 | I8: 384
A9: 지역자원시설세 | B9: 0 | C9: 0
A10: 지방소비세 | B10: 0 | C10: 0
A11: 등록세 | B11: 3 | C11: 762 | F11: 3 | G11: 762
A12: 면허세 | B12: 0 | C12: 0
A13: 공동시설세 | B13: 0 | C13: 0
A14: 지역개발세 | B14: 0 | C14: 0
A15: 지방교육세 | B15: 429 | C15: 12,118 | D15: 6 | E15: 26 | F15: 55 | G15: 2,188 | H15: 56 | I15: 331 | J15: 36 | K15: 6,364 | N15: 276 | O15: 3,209
A16: 시군세 계 | B16: =SUM(B17:B27) -> 1,196 | C16: =SUM(C17:C27) -> 2,472,709 | D16: 6 | E16: 247 | F16: =SUM(F17:F27) -> 115 | G16: =SUM(G17:G27) -> 59,343 | H16: 55 | I16: 2,002 | J16: 0 | K16: 0 | L16: 1 | M16: 17 | N16: 1,019 | O16: 2,411,100
A17: 주 민 세 | B17: =SUM(D17,F17,H17,J17,L17,N17) -> 34 | C17: =SUM(E17,G17,I17,K17,M17,O17) -> 110,137 | F17: 4 | G17: 3,418 | H17: 7 | I17: 610 | N17: 23 | O17: 106,109
A18: 재 산 세 | B18: =SUM(D18,F18,H18,J18,L18,N18) -> 68 | C18: 3,436 | D18: 4 | E18: 30 | F18: 20 | G18: 2,282 | H18: 44 | I18: 1,124
A19: 자동차세 | B19: 298 | C19: 12,711 | D19: 1 | E19: 63 | F19: 22 | G19: 1,760 | N19: 275 | O19: 10,888
A20: 담배소비세 | B20: 2 | C20: 5 | F20: 2 | G20: 5
A21: 지방소득세 | B21: 790 | C21: 2,346,363 | D21: 1 | E21: 154 | F21: 65 | G21: 51,872 | H21: 2 | I21: 217 | L21: 1 | M21: 17 | N21: 721 | O21: 2,294,103
A22: 주행세 | B22: 0 | C22: 0
A23: 농업소득세 | B23: 0 | C23: 0
A24: 도축세 | B24: 0 | C24: 0
A25: 종합토지세 | B25: 0 | C25: 0
A26: 도시계획세 | B26: 4 | C26: 57 | F26: 2 | G26: 6 | H26: 2 | I26: 51
A27: 사업소세 | B27: 0 | C27: 0
